Workbook

Sheet Menu (hidden)
B2: SAISIE MENSUEL

Sheet BD
A1: N° | B1: Code affaires | C1: Nom du site | D1: Date début de facturation | E1: Date fin de facturation | F1: date de facture émise | G1: Index début | H1: Index fin | I1: Décompteur | J1: Conso (MWh) | K1: Base R1 | L1: Coéficient de révision R1 | M1: prix final | N1: Redevance R1 | O1: Base R2 | P1: Coéficient de révision R2 | Q1: Redevance R2 | R1: Remarque | S1: Date début de facturation | T1: Date fin de facturation | U1: date de facture émise | V1: R1 à Facturer | W1: R1 déjà facturé HT | X1: Régularisation R1 | Y1: Index début d'avoir | Z1: Index fin d'avoir | AA1: Conso (MWh) | AB1: R2 à Facturer | AC1: R2 déjà facturé HT | AD1: Régularisation R2 | AE1: Période de couverture | AF1: Remarque
A2: 19 | B2: H2312 | C2: MEXICO | D2: 2013-08-01 | E2: 2013-09-30 | F2: 2013-09-30 | G2: 4152 | H2: 4563 | I2: 14 | J2: 397 | K2: 4561 | L2: 1.5 | M2: 4706.952 | N2: 1868659.944 | O2: 41552 | P2: 254 | Q2: 1.0654 | R2: blablablabla | S2: 2013-08-01 | T2: 2013-09-30 | U2: 2013-11-15 | V2: 24600.88 | W2: 25487.31 | X2: =W2-V2 -> 886.43 | Y2: 25487.31 | Z2: 39752.87 | AA2: 40239.05 | AB2: 486.18 | AC2: 2313 | AD2: 3654 | AE2: 01/03/2013 au 31/12/2013 | AF2: blablabla
A3: 18 | B3: H06 | C3: LIEVIN | D3: 2013-04-01 | E3: 2013-04-30 | F3: 2013-08-30 | G3: 2543 | H3: 6852 | I3: 14 | J3: 4295 | K3: 1254 | L3: 1.0512 | M3: 1318.2048 | N3: 5661689.616 | O3: 41452 | P3: 452 | Q3: 1.056
A4: 17 | B4: H06 | C4: LIEVIN | D4: 2013-05-01 | E4: 2013-05-31 | F4: 2013-05-31 | G4: 1234 | H4: 1954 | I4: 25 | J4: 695 | K4: 4567 | L4: 1.065 | M4: 4863.855 | N4: 3380379.225 | O4: 41448 | P4: 125 | Q4: 1.054 | R4: blablablabla
A5: 16 | B5: H06 | C5: LIEVIN | D5: 2013-06-01 | E5: 2013-06-30 | F5: 2013-06-30 | G5: 1235 | H5: 14568 | I5: 12 | J5: 13321 | K5: 1456 | L5: 1.068 | M5: 1555.008 | N5: 20714261.57 | O5: 41417 | P5: 1254 | Q5: 12
A6: 15 | B6: H06 | C6: LIEVIN | D6: 2013-07-01 | E6: 2013-07-31 | F6: 2013-07-31 | G6: 25654 | H6: 29854 | I6: 25 | J6: 4175 | K6: 22 | L6: 22 | M6: 484 | N6: 2020700 | O6: 41610 | P6: 25 | Q6: 1.05 | R6: blablablabla
A7: 14 | B7: H06 | C7: LIEVIN | D7: 2013-08-01 | E7: 2013-08-31 | F7: 2013-08-31 | G7: 236 | H7: 298 | I7: 32 | J7: 30 | K7: 125 | L7: 1.2 | M7: 150 | N7: 4500 | O7: 41449 | P7: 451 | Q7: 1.363832
A8: 8 | B8: H06 | C8: LIEVIN | D8: 2013-09-01 | E8: 2013-09-30 | F8: 2013-09-30 | G8: 49110.5 | H8: 49194.6 | I8: 3.33 | J8: 80.77 | K8: 14.511 | L8: 3.13848 | M8: 45.54248328 | N8: 3678.466375 | O8: 41486 | P8: 62979.172 | Q8: 1.363832 | R8: blablablabla
A9: 7 | B9: H06 | C9: LIEVIN | D9: 2013-10-01 | E9: 2013-10-31 | F9: 2013-10-31 | G9: 49110.5 | H9: 49194.6 | I9: 14 | J9: 23.65 | K9: 45.6 | L9: 3.13848 | M9: 45.54248328 | N9: 3678.466375 | O9: 41486 | P9: 62979.172 | Q9: 1.363832
A10: 5 | B10: H015 | C10: Arras Hochettes | D10: 2013-04-01 | E10: 2013-04-30 | F10: 2013-05-01 | G10: 49110.5 | H10: 49194.6 | I10: 4 | J10: 80.77 | K10: 25 | L10: 3.13848 | M10: 45.54248328 | N10: 3678.466375 | O10: 41486 | P10: 62979.172 | Q10: 1.363832 | R10: blablablabla | S10: 2013-04-01 | T10: 2013-04-30 | U10: 2013-12-25 | V10: 145 | W10: 254 | X10: 130.364 | Y10: 123 | Z10: 321 | AA10: 198 | AB10: 542 | AC10: 265 | AD10: -331.292 | AE10: Du 01/03/2013 au 31/12/2013 | AF10: kqsfh kqejiekfana kejfgkeaf
A11: 4 | B11: H07 | C11: Arras Haut Blancs Monts | D11: 2013-06-01 | E11: 2013-07-31 | F11: 2013-07-31 | G11: 49110.5 | H11: 49194.6 | I11: 5 | J11: 80.77 | K11: 63 | L11: 3.13848 | M11: 45.54248328 | N11: 3678.466375 | O11: 41486 | P11: 62979.172 | Q11: 1.361417 | S11: 2012-06-01 | T11: 2012-07-31 | U11: 2012-12-31 | V11: 41531 | W11: 24600.88 | X11: 2514 | Y11: 25487.31 | Z11: 39752.87 | AA11: 40239.05 | AB11: 486.18 | AC11: 548 | AD11: 253 | AE11: 01/03/2013 au 31/12/2013
A12: 2 | B12: H06 | C12: LIEVIN | D12: 2013-11-01 | E12: 2013-11-30 | F12: 2013-11-30 | G12: 39752.87 | H12: 40293.05 | I12: 0 | J12: 540.18 | K12: 14.511 | L12: 3.13848 | M12: 45.54248328 | N12: 24601.13862 | O12: 41455 | P12: 41819.621 | Q12: 1.361417
A13: 1 | B13: H06 | C13: LIEVIN | D13: 2012-12-01 | E13: 2012-12-31 | F13: 2013-12-31 | G13: 39752.87 | H13: 40293.05 | I13: 0 | J13: 540.18 | K13: 14.511 | L13: 3.13848 | M13: 45.54248328 | N13: 24601.13862 | O13: 41455 | P13: 41819.621 | Q13: 0.987 | R13: blablablabla
A14: 20 | B14: TH054 | C14: Paris | D14: 2013-07-01 | E14: 2013-07-31 | F14: 2013-07-31 | G14: 7412 | H14: 7952 | I14: 36 | J14: 504 | K14: 1254 | L14: 1.035 | M14: 1297.89 | N14: 654136.56 | O14: 1543 | P14: 1242 | Q14: 0.987
A15: 21 | B15: H06 | C15: LIEVIN | D15: 0 | E15: 0 | F15: 0 | G15: 0 | H15: 0 | I15: 0 | J15: 0 | K15: 0 | L15: 0 | M15: 0 | N15: 0 | O15: 0 | P15: 0

Sheet Nouveau_Mensuel
A1: N° | B1: Code affaires | C1: Nom du site | D1: Date début de facturation | E1: Date fin de facturation | F1: date de facture émise | G1: Index début | H1: Index fin | I1: Décompteur | J1: Conso (MWh) | K1: Base R1 | L1: Coéficient de révision R1 | M1: prix final | N1: Redevance R1 | O1: Base R2 | P1: Coéficient de révision R2 | Q1: Redevance R2 | R1: Remarque | S1: Date début de facturation | T1: Date fin de facturation | U1: date de facture émise | V1: R1 à Facturer | W1: R1 déjà facturé HT | X1: Régularisation R1 | Y1: Index début d'avoir | Z1: Index fin d'avoir | AA1: Conso (MWh) | AB1: R2 à Facturer | AC1: R2 déjà facturé HT | AD1: Régularisation R2 | AE1: Période de couverture | AF1: Remarque
A2: =MAX(BD!A:A)+1 -> 22 | B2: =E5 -> H07 | C2: =E6 -> Arras Haut Blancs Monts | D2: =E7 -> 2010-01-01 | E2: =E8 -> 2010-01-02 | F2: =E9 -> 2010-01-03 | G2: =E12 -> 125 | H2: =E13 -> 252 | I2: =E14 -> 300 | J2: =H2-G2-I2 -> -173 | K2: =E10 -> 200 | L2: =E11 -> 3 | M2: =K2*L2 -> 600 | N2: =M2*J2 -> -103800 | O2: =E15 -> 150.25 | P2: =E16 -> 30 | Q2: =O2*P2 -> 4507.5 | R2: =E17 -> aze | S2: =K9 -> 2013-04-01 | T2: =K10 -> 2013-04-30 | U2: =K8 -> 2014-01-12 | V2: =K13 -> 154 | W2: =K14 -> 325 | X2: =((V2-W2)+(V2-W2)*0.196)*-1 -> 204.516 | Y2: =K11 -> 121 | Z2: =K12 -> 321 | AA2: =Z2-Y2 -> 200 | AB2: =+K15 -> 125 | AC2: =K16 -> 325 | AD2: =((AB2-AC2)+(AB2-AC2)*0.196)*-1 -> 239.2 | AE2: =K18 -> du 01/04/2013 au 31/12/2013 | AF2: =K19 -> BLABLABLABAML
B3: ="BD!A"&COUNTIF(BD!A:A,">0")+2 -> BD!A16
C4: =IF(BD!A6000>0,"CAPACITE MAXI ATTEINTE","") ->  | I4: Nombre de mois couvrant la Régulation : | K4: 9
C5: Code affaires | E5: H07
C6: Nom du site | E6: =IF(E5="","",IF(AND(D6="",COUNTIF(Liste_ref,E5)=0),"<< Entrer le site",IF(COUNTIF(Liste_ref,E5),VLOOKUP(E5,BD!$B:$C,2,0),D6))) -> Arras Haut Blancs Monts | I6: Code affaires | K6: H06 | M6: Code affaires | O6: H06 | Q6: Code affaires | S6: H06 | U6: Code affaires | W6: H06 | Y6: Code affaires | AA6: H06 | AC6: Code affaires | AE6: H06 | AG6: Code affaires | AI6: H06 | AK6: Code affaires | AM6: H06 | AO6: Code affaires | AQ6: H06
C7: Date début de facturation | E7: 2010-01-01 | I7: Nom du site | K7: =IF(K6="","",VLOOKUP(K6,BD!$B:$C,2,0)) -> LIEVIN | M7: Nom du site | O7: =IF(O6="","",VLOOKUP(O6,BD!$B:$C,2,0)) -> LIEVIN | Q7: Nom du site | S7: =IF(S6="","",VLOOKUP(S6,BD!$B:$C,2,0)) -> LIEVIN | U7: Nom du site | W7: =IF(W6="","",VLOOKUP(W6,BD!$B:$C,2,0)) -> LIEVIN | Y7: Nom du site | AA7: =IF(AA6="","",VLOOKUP(AA6,BD!$B:$C,2,0)) -> LIEVIN | AC7: Nom du site | AE7: =IF(AE6="","",VLOOKUP(AE6,BD!$B:$C,2,0)) -> LIEVIN | AG7: Nom du site | AI7: =IF(AI6="","",VLOOKUP(AI6,BD!$B:$C,2,0)) -> LIEVIN | AK7: Nom du site | AM7: =IF(AM6="","",VLOOKUP(AM6,BD!$B:$C,2,0)) -> LIEVIN | AO7: Nom du site | AQ7: =IF(AQ6="","",VLOOKUP(AQ6,BD!$B:$C,2,0)) -> LIEVIN
C8: Date fin de facturation | E8: 2010-01-02 | I8: date de facture émise | K8: 2014-01-12 | M8: date de facture émise | O8: 2014-01-12 | Q8: date de facture émise | S8: 2014-01-12 | U8: date de facture émise | W8: 2014-01-12 | Y8: date de facture émise | AA8: 2014-01-12 | AC8: date de facture émise | AE8: 2014-01-12 | AG8: date de facture émise | AI8: 2014-01-12 | AK8: date de facture émise | AM8: 2014-01-12 | AO8: date de facture émise | AQ8: 2014-01-12
C9: date de facture émise | E9: 2010-01-03 | I9: Date début de facturation | K9: 2013-04-01 | M9: Date début de facturation | O9: 2013-05-01 | Q9: Date début de facturation | S9: 2013-06-01 | U9: Date début de facturation | W9: 2013-07-01 | Y9: Date début de facturation | AA9: 2013-08-01 | AC9: Date début de facturation | AE9: 2013-09-01 | AG9: Date début de facturation | AI9: 2013-10-01 | AK9: Date début de facturation | AM9: 2013-11-01 | AO9: Date début de facturation | AQ9: 2012-12-01
C10: Base R1 | E10: 200 | I10: Date fin de facturation | K10: 2013-04-30 | M10: Date fin de facturation | O10: 2013-05-31 | Q10: Date fin de facturation | S10: 2013-06-30 | U10: Date fin de facturation | W10: 2013-07-31 | Y10: Date fin de facturation | AA10: 2013-08-31 | AC10: Date fin de facturation | AE10: 2013-09-30 | AG10: Date fin de facturation | AI10: 2013-10-31 | AK10: Date fin de facturation | AM10: 2013-11-30 | AO10: Date fin de facturation | AQ10: 2012-12-31
C11: Coéficient de révision R1 | E11: 3 | I11: Index début d'avoir | K11: 121 | M11: Index début d'avoir | O11: 542 | Q11: Index début d'avoir | S11: 745 | U11: Index début d'avoir | W11: 854 | Y11: Index début d'avoir | AA11: 524 | AC11: Index début d'avoir | AE11: 456 | AG11: Index début d'avoir | AI11: 654 | AK11: Index début d'avoir | AM11: 654 | AO11: Index début d'avoir | AQ11: 357
C12: Index début | E12: 125 | I12: Index fin d'avoir | K12: 321 | M12: Index fin d'avoir | O12: 654 | Q12: Index fin d'avoir | S12: 987 | U12: Index fin d'avoir | W12: 965 | Y12: Index fin d'avoir | AA12: 652 | AC12: Index fin d'avoir | AE12: 654 | AG12: Index fin d'avoir | AI12: 789 | AK12: Index fin d'avoir | AM12: 789 | AO12: Index fin d'avoir | AQ12: 987
C13: Index fin | E13: 252 | I13: R1 à Facturé | K13: 154 | M13: R1 à Facturé | O13: 124 | Q13: R1 à Facturé | S13: 521 | U13: R1 à Facturé | W13: 147 | Y13: R1 à Facturé | AA13: 456 | AC13: R1 à Facturé | AE13: 753 | AG13: R1 à Facturé | AI13: 456 | AK13: R1 à Facturé | AM13: 456 | AO13: R1 à Facturé | AQ13: 458
C14: Décompteur | E14: 300 | I14: R1 déjà facturé HT | K14: 325 | M14: R1 déjà facturé HT | O14: 256 | Q14: R1 déjà facturé HT | S14: 952 | U14: R1 déjà facturé HT | W14: 258 | Y14: R1 déjà facturé HT | AA14: 478 | AC14: R1 déjà facturé HT | AE14: 852 | AG14: R1 déjà facturé HT | AI14: 258 | AK14: R1 déjà facturé HT | AM14: 489 | AO14: R1 déjà facturé HT | AQ14: 658
C15: Base R2 | E15: 150.25 | I15: R2 à Facturé | K15: 125 | M15: R2 à Facturé | O15: 125 | Q15: R2 à Facturé | S15: 452 | U15: R2 à Facturé | W15: 741 | Y15: R2 à Facturé | AA15: 159 | AC15: R2 à Facturé | AE15: 741 | AG15: R2 à Facturé | AI15: 654 | AK15: R2 à Facturé | AM15: 654 | AO15: R2 à Facturé | AQ15: 215
C16: Coéficient de révision R2 | E16: 30 | I16: R2 déjà facturé HT | K16: 325 | M16: R2 déjà facturé HT | O16: 145 | Q16: R2 déjà facturé HT | S16: 654 | U16: R2 déjà facturé HT | W16: 258 | Y16: R2 déjà facturé HT | AA16: 178 | AC16: R2 déjà facturé HT | AE16: 852 | AG16: R2 déjà facturé HT | AI16: 457 | AK16: R2 déjà facturé HT | AM16: 789 | AO16: R2 déjà facturé HT | AQ16: 354
C17: Remarque | E17: aze | I17: Régularisation R2 | K17: =((K15-K16)+(K15-K16)*0.196)*-1 -> 239.2 | M17: Régularisation R2 | O17: =((O15-O16)+(O15-O16)*0.196)*-1 -> 23.92 | Q17: Régularisation R2 | S17: =((S15-S16)+(S15-S16)*0.196)*-1 -> 241.592 | U17: Régularisation R2 | W17: =((W15-W16)+(W15-W16)*0.196)*-1 -> -577.668 | Y17: Régularisation R2 | AA17: =((AA15-AA16)+(AA15-AA16)*0.196)*-1 -> 22.724 | AC17: Régularisation R2 | AE17: =((AE15-AE16)+(AE15-AE16)*0.196)*-1 -> 132.756 | AG17: Régularisation R2 | AI17: =((AI15-AI16)+(AI15-AI16)*0.196)*-1 -> -235.612 | AK17: Régularisation R2 | AM17: =((AM15-AM16)+(AM15-AM16)*0.196)*-1 -> 161.46 | AO17: Régularisation R2 | AQ17: =((AQ15-AQ16)+(AQ15-AQ16)*0.196)*-1 -> 166.244
I18: Période de couverture | K18: du 01/04/2013 au 31/12/2013 | M18: Période de couverture | O18: du 01/04/2013 au 31/12/2013 | Q18: Période de couverture | S18: du 01/04/2013 au 31/12/2013 | U18: Période de couverture | W18: du 01/04/2013 au 31/12/2013 | Y18: Période de couverture | AA18: du 01/04/2013 au 31/12/2013 | AC18: Période de couverture | AE18: du 01/04/2013 au 31/12/2013 | AG18: Période de couverture | AI18: du 01/04/2013 au 31/12/2013 | AK18: Période de couverture | AM18: du 01/04/2013 au 31/12/2013 | AO18: Période de couverture | AQ18: du 01/04/2013 au 31/12/2013
I19: Remarque | K19: BLABLABLABAML | M19: Remarque | O19: BLABLABAL | Q19: Remarque | S19: BLABLABLABLABLANBAL NBALKN | U19: Remarque | W19: BLABLABLABLABLANBAL NBALKN | Y19: Remarque | AC19: Remarque | AE19: BLABLABLABLABLANBAL NBALKN | AG19: Remarque | AI19: BLABLABLABLABLANBAL NBALKN | AK19: Remarque | AO19: Remarque | AQ19: BLABLABLABLABLANBAL NBALKN

Sheet Consultation
A1: N° | B1: Code affaires | C1: Nom du site | D1: Date début de facturation | E1: Date fin de facturation | F1: date de facture émise | G1: Index début | H1: Index fin | I1: Décompteur | J1: Conso (MWh) | K1: Base R1 | L1: Coéficient de révision R1 | M1: prix final | N1: Redevance R1 | O1: Base R2 | P1: Coéficient de révision R2 | Q1: Redevance R2 | R1: Remarque | S1: Date début de facturation | T1: Date fin de facturation | U1: date de facture émise | V1: R1 à Facturer | W1: R1 déjà facturé HT | X1: Régularisation R1 | Y1: Index début d'avoir | Z1: Index fin d'avoir | AA1: Conso (MWh) | AB1: R2 à Facturer | AC1: R2 déjà facturé HT | AD1: Régularisation R2 | AE1: Période de couverture | AF1: Remarque
A2: =C8 -> 4 | B2: =IF($A$2="","",VLOOKUP($A$2,Champ,2,0)) -> H07 | C2: =IF($A$2="","",IF(D12<>"",$D$12,$C$12)) -> Arras Haut Blancs Monts | D2: =IF($A$2="","",IF($D$19<>"",$D$19,$C$19)) ->  | E2: =IF($A$2="","",IF($D$20<>"",$D$20,$C$20)) -> 41121 | F2: =IF($A$2="","",IF($D$21<>"",$D$21,$C$21)) -> 41274 | G2: =IF($A$2="","",IF($D$13<>"",$D$13,$C$13)) -> 49110.5 | H2: =IF($A$2="","",IF($D$14<>"",$D$14,$C$14)) -> 49194.6 | I2: =IF($A$2="","",VLOOKUP($A$2,Champ,9,0)) -> 5 | J2: =H2-G2-I2 -> 79.1 | K2: =IF($A$2="","",VLOOKUP($A$2,Champ,11,0)) -> 63 | L2: =IF($A$2="","",VLOOKUP($A$2,Champ,12,0)) -> 3.13848 | M2: =K2*L2 -> 197.72424 | N2: =M2*J2 -> 15639.98738 | O2: =IF($A$2="","",VLOOKUP($A$2,Champ,15,0)) -> 41486 | P2: =IF($A$2="","",VLOOKUP($A$2,Champ,16,0)) -> 62979.172 | Q2: =O2*P2 -> 2612753930 | R2: =IF($A$2="","",IF($D$18<>"",$D$18,$C$18)) -> 0 | S2: =IF($A$2="","",IF($D$19<>"",$D$19,$C$19)) ->  | T2: =IF($A$2="","",IF($D$20<>"",$D$20,$C$20)) -> 41121 | U2: =IF($A$2="","",IF($D$21<>"",$D$21,$C$21)) -> 41274 | V2: =IF($A$2="","",IF($D$23<>"",$D$23,$C$23)) -> 41531 | W2: =IF($A$2="","",IF($D$24<>"",$D$24,$C$24)) -> 24600.88 | X2: =((V2-W2)+(V2-W2)*0.196)*-1 -> -20248.42352 | Y2: =IF($A$2="","",VLOOKUP($A$2,Champ,25,0)) -> 25487.31 | Z2: =IF($A$2="","",VLOOKUP($A$2,Champ,26,0)) -> 39752.87 | AA2: =Z2-Y2 -> 14265.56 | AB2: =IF($A$2="","",IF($D$27<>"",$D$27,$C$27)) -> 486.18 | AC2: =IF($A$2="","",IF($D$28<>"",$D$28,$C$28)) -> 548 | AD2: =((AB2-AC2)+(AB2-AC2)*0.196)*-1 -> 73.93672 | AE2: =IF($A$2="","",IF($D$29<>"",$D$29,$C$29)) -> 01/03/2013 au 31/12/2013 | AF2: =IF($A$2="","",IF($D$30<>"",$D$30,$C$30)) -> 0
A3: ="BD!A"&MATCH(A2,BD!A:A,0)&":AF"&MATCH(A2,BD!A:A,0) -> BD!A11:AF11
G4: Sélectionner : Code affaire recherché | I4: H07 | K4: Sélectionner la durée voulue
G5: Sélectionner : Début de période souhaité | I5: 2012-01-01
G6: Date de fin de période | I6: =DATE(YEAR(I5),MONTH(I5)+K6,DAY(I5)) -> 2013-07-01 | K6: 18
C7: Edition | D7: Modification
B8: Sélection du Numéro à éditer> | C8: 4 | G8: N° de codage | H8: =IF(COLUMN()-7<=MAX(calc!$H$2:$H$3000),INDEX(BD!$A$2:$A$3000,MATCH(COLUMN()-7,calc!$H$2:$H$3000,0)),"") -> 4 | I8: =IF(COLUMN()-7<=MAX(calc!$H$2:$H$3000),INDEX(BD!$A$2:$A$3000,MATCH(COLUMN()-7,calc!$H$2:$H$3000,0)),"") ->  | J8: =IF(COLUMN()-7<=MAX(calc!$H$2:$H$3000),INDEX(BD!$A$2:$A$3000,MATCH(COLUMN()-7,calc!$H$2:$H$3000,0)),"") ->  | K8: =IF(COLUMN()-7<=MAX(calc!$H$2:$H$3000),INDEX(BD!$A$2:$A$3000,MATCH(COLUMN()-7,calc!$H$2:$H$3000,0)),"") ->  | L8: =IF(COLUMN()-7<=MAX(calc!$H$2:$H$3000),INDEX(BD!$A$2:$A$3000,MATCH(COLUMN()-7,calc!$H$2:$H$3000,0)),"") ->  | M8: =IF(COLUMN()-7<=MAX(calc!$H$2:$H$3000),INDEX(BD!$A$2:$A$3000,MATCH(COLUMN()-7,calc!$H$2:$H$3000,0)),"") ->  | N8: =IF(COLUMN()-7<=MAX(calc!$H$2:$H$3000),INDEX(BD!$A$2:$A$3000,MATCH(COLUMN()-7,calc!$H$2:$H$3000,0)),"") ->  | O8: =IF(COLUMN()-7<=MAX(calc!$H$2:$H$3000),INDEX(BD!$A$2:$A$3000,MATCH(COLUMN()-7,calc!$H$2:$H$3000,0)),"") ->  | P8: =IF(COLUMN()-7<=MAX(calc!$H$2:$H$3000),INDEX(BD!$A$2:$A$3000,MATCH(COLUMN()-7,calc!$H$2:$H$3000,0)),"") ->  | Q8: =IF(COLUMN()-7<=MAX(calc!$H$2:$H$3000),INDEX(BD!$A$2:$A$3000,MATCH(COLUMN()-7,calc!$H$2:$H$3000,0)),"") ->  | R8: =IF(COLUMN()-7<=MAX(calc!$H$2:$H$3000),INDEX(BD!$A$2:$A$3000,MATCH(COLUMN()-7,calc!$H$2:$H$3000,0)),"") ->  | S8: =IF(COLUMN()-7<=MAX(calc!$H$2:$H$3000),INDEX(BD!$A$2:$A$3000,MATCH(COLUMN()-7,calc!$H$2:$H$3000,0)),"") ->  | T8: =IF(COLUMN()-7<=MAX(calc!$H$2:$H$3000),INDEX(BD!$A$2:$A$3000,MATCH(COLUMN()-7,calc!$H$2:$H$3000,0)),"") ->  | U8: =IF(COLUMN()-7<=MAX(calc!$H$2:$H$3000),INDEX(BD!$A$2:$A$3000,MATCH(COLUMN()-7,calc!$H$2:$H$3000,0)),"") ->  | V8: =IF(COLUMN()-7<=MAX(calc!$H$2:$H$3000),INDEX(BD!$A$2:$A$3000,MATCH(COLUMN()-7,calc!$H$2:$H$3000,0)),"") ->  | W8: =IF(COLUMN()-7<=MAX(calc!$H$2:$H$3000),INDEX(BD!$A$2:$A$3000,MATCH(COLUMN()-7,calc!$H$2:$H$3000,0)),"") ->  | X8: =IF(COLUMN()-7<=MAX(calc!$H$2:$H$3000),INDEX(BD!$A$2:$A$3000,MATCH(COLUMN()-7,calc!$H$2:$H$3000,0)),"") ->  | Y8: =IF(COLUMN()-7<=MAX(calc!$H$2:$H$3000),INDEX(BD!$A$2:$A$3000,MATCH(COLUMN()-7,calc!$H$2:$H$3000,0)),"") ->  | Z8: =IF(COLUMN()-7<=MAX(calc!$H$2:$H$3000),INDEX(BD!$A$2:$A$3000,MATCH(COLUMN()-7,calc!$H$2:$H$3000,0)),"") ->  | AA8: =IF(COLUMN()-7<=MAX(calc!$H$2:$H$3000),INDEX(BD!$A$2:$A$3000,MATCH(COLUMN()-7,calc!$H$2:$H$3000,0)),"") ->  | AB8: =IF(COLUMN()-7<=MAX(calc!$H$2:$H$3000),INDEX(BD!$A$2:$A$3000,MATCH(COLUMN()-7,calc!$H$2:$H$3000,0)),"") ->  | AC8: =IF(COLUMN()-7<=MAX(calc!$H$2:$H$3000),INDEX(BD!$A$2:$A$3000,MATCH(COLUMN()-7,calc!$H$2:$H$3000,0)),"") ->  | AD8: =IF(COLUMN()-7<=MAX(calc!$H$2:$H$3000),INDEX(BD!$A$2:$A$3000,MATCH(COLUMN()-7,calc!$H$2:$H$3000,0)),"") ->  | AE8: =IF(COLUMN()-7<=MAX(calc!$H$2:$H$3000),INDEX(BD!$A$2:$A$3000,MATCH(COLUMN()-7,calc!$H$2:$H$3000,0)),"") ->  | AF8: =IF(COLUMN()-7<=MAX(calc!$H$2:$H$3000),INDEX(BD!$A$2:$A$3000,MATCH(COLUMN()-7,calc!$H$2:$H$3000,0)),"") ->  | AG8: =IF(COLUMN()-7<=MAX(calc!$H$2:$H$3000),INDEX(BD!$A$2:$A$3000,MATCH(COLUMN()-7,calc!$H$2:$H$3000,0)),"") ->  | AH8: =IF(COLUMN()-7<=MAX(calc!$H$2:$H$3000),INDEX(BD!$A$2:$A$3000,MATCH(COLUMN()-7,calc!$H$2:$H$3000,0)),"") ->  | AI8: =IF(COLUMN()-7<=MAX(calc!$H$2:$H$3000),INDEX(BD!$A$2:$A$3000,MATCH(COLUMN()-7,calc!$H$2:$H$3000,0)),"") ->  | AJ8: =IF(COLUMN()-7<=MAX(calc!$H$2:$H$3000),INDEX(BD!$A$2:$A$3000,MATCH(COLUMN()-7,calc!$H$2:$H$3000,0)),"") ->  | AK8: =IF(COLUMN()-7<=MAX(calc!$H$2:$H$3000),INDEX(BD!$A$2:$A$3000,MATCH(COLUMN()-7,calc!$H$2:$H$3000,0)),"") -> 
B9: Date début de facturation | C9: =IF($C$8="","",HLOOKUP($C$8,$H$8:$AK$30,ROW()-7,0)) -> 2013-06-01 | F9: FACTURE | G9: Date début de facturation | H9: =IF(H$8="","",VLOOKUP(H$8,Champ,4,0)) -> 2013-06-01
B10: Date fin de facturation | C10: =IF($C$8="","",HLOOKUP($C$8,$H$8:$AK$30,ROW()-7,0)) -> 2013-07-31 | G10: Date fin de facturation | H10: =IF(H$8="","",VLOOKUP(H$8,Champ,5,0)) -> 2013-07-31
B11: date de facture émise | C11: 2013-07-31 | G11: date de facture émise | H11: =IF(H$8="","",VLOOKUP(H$8,Champ,6,0)) -> 2013-07-31
B12: Nom du site | C12: Arras Haut Blancs Monts | G12: Nom du site | H12: =IF(H$8="","",VLOOKUP(H$8,Champ,3,0)) -> Arras Haut Blancs Monts
B13: Index début | C13: 49110.5 | G13: Index début | H13: =IF(H$8="","",VLOOKUP(H$8,Champ,7,0)) -> 49110.5
B14: Index fin | C14: 49194.6 | G14: Index fin | H14: =IF(H$8="","",VLOOKUP(H$8,Champ,8,0)) -> 49194.6
B15: Conso (MWh) | C15: 80.77 | D15: =IF(C8="","",IF(J2=C15,"",J2)) -> 79.1 | G15: Conso (MWh) | H15: =IF(H$8="","",VLOOKUP(H$8,Champ,10,0)) -> 80.77
B16: Redevance R1 | C16: 3678.466375 | D16: =IF(C8="","",IF(N2=C16,"",N2)) -> 15639.98738 | G16: Redevance R1 | H16: =IF(H$8="","",VLOOKUP(H$8,Champ,14,0)) -> 3678.466375
B17: Redevance R2 | C17: 1.361417 | D17: =IF(C8="","",IF(Q2=C17,"",Q2)) -> 2612753930 | G17: Redevance R2 | H17: =IF(H$8="","",VLOOKUP(H$8,Champ,17,0)) -> 1.361417
B18: Remarque | C18: 0 | G18: Remarque | H18: =IF(H$8="","",VLOOKUP(H$8,Champ,18,0)) -> 0
B19: Date début de facturation | F19: REGULATION | G19: Date début de facturation | H19: =IF(I$8="","",VLOOKUP(I$8,Champ,19,0)) -> 
B20: Date fin de facturation | C20: 2012-07-31 | G20: Date fin de facturation | H20: =IF(H$8="","",VLOOKUP(H$8,Champ,20,0)) -> 2012-07-31
B21: date de facture émise | C21: 2012-12-31 | G21: date de facture émise | H21: =IF(H$8="","",VLOOKUP(H$8,Champ,21,0)) -> 2012-12-31
B22: Régularisation R1 | C22: 2514 | D22: =IF(C8="","",IF(X2=C22,"",X2)) -> -20248.42352 | G22: Régularisation R1 | H22: =IF(H$8="","",VLOOKUP(H$8,Champ,24,0)) -> 2514
B23: R1 à Facturer | C23: 41531 | G23: R1 à Facturer | H23: =IF(H$8="","",VLOOKUP(H$8,Champ,22,0)) -> 41531
B24: R1 déjà facturé HT | C24: 24600.88 | G24: R1 déjà facturé HT | H24: =IF(H$8="","",VLOOKUP(H$8,Champ,23,0)) -> 24600.88
B25: Conso (MWh) | C25: 40239.05 | D25: =IF(C8="","",IF(AA2=C25,"",AA2)) -> 14265.56 | G25: Conso (MWh) | H25: =IF(H$8="","",VLOOKUP(H$8,Champ,27,0)) -> 40239.05
B26: Régularisation R2 | C26: 253 | D26: =IF(C8="","",IF(AD2=C26,"",AD2)) -> 73.93672 | G26: Régularisation R2 | H26: =IF(H$8="","",VLOOKUP(H$8,Champ,30,0)) -> 253
B27: R2 à Facturer | C27: 486.18 | G27: R2 à Facturer | H27: =IF(H$8="","",VLOOKUP(H$8,Champ,28,0)) -> 486.18
B28: R2 déjà facturé HT | C28: 548 | G28: R2 déjà facturé HT | H28: =IF(H$8="","",VLOOKUP(H$8,Champ,29,0)) -> 548
B29: Période de couverture | C29: 01/03/2013 au 31/12/2013 | G29: Période de couverutre | H29: =IF(H$8="","",VLOOKUP(H$8,Champ,31,0)) -> 01/03/2013 au 31/12/2013
B30: Remarque | C30: 0 | G30: Remarque | H30: =IF(H$8="","",VLOOKUP(H$8,Champ,32,0)) -> 0 | J30: =IF(J$8="","",VLOOKUP(J$8,Champ,32,0)) -> 
D31: =IF(Q16=C31,"",Q16) -> 

Sheet Param (hidden)
A7: =IF(A2000<>"","Capacité liste atteinte","") -> 
A8: Code affaires nommé Liste_ref | B8: Nom du site (issu de BD)
A9: =IF(ROW()-8<=MAX(calc!F:F),INDEX(BD!B:B,MATCH(ROW()-8,calc!F:F,0)),"") -> H2312 | B9: =IF(A9="","",VLOOKUP(A9,BD!B:C,2,0)) -> MEXICO
A10: =IF(ROW()-8<=MAX(calc!F:F),INDEX(BD!B:B,MATCH(ROW()-8,calc!F:F,0)),"") -> H06 | B10: =IF(A10="","",VLOOKUP(A10,BD!B:C,2,0)) -> LIEVIN
A11: =IF(ROW()-8<=MAX(calc!F:F),INDEX(BD!B:B,MATCH(ROW()-8,calc!F:F,0)),"") -> H015 | B11: =IF(A11="","",VLOOKUP(A11,BD!B:C,2,0)) -> Arras Hochettes
A12: =IF(ROW()-8<=MAX(calc!F:F),INDEX(BD!B:B,MATCH(ROW()-8,calc!F:F,0)),"") -> H07 | B12: =IF(A12="","",VLOOKUP(A12,BD!B:C,2,0)) -> Arras Haut Blancs Monts
A13: =IF(ROW()-8<=MAX(calc!F:F),INDEX(BD!B:B,MATCH(ROW()-8,calc!F:F,0)),"") -> TH054 | B13: =IF(A13="","",VLOOKUP(A13,BD!B:C,2,0)) -> Paris
A14: =IF(ROW()-8<=MAX(calc!F:F),INDEX(BD!B:B,MATCH(ROW()-8,calc!F:F,0)),"") ->  | B14: =IF(A14="","",VLOOKUP(A14,BD!B:C,2,0)) -> 
A15: =IF(ROW()-8<=MAX(calc!F:F),INDEX(BD!B:B,MATCH(ROW()-8,calc!F:F,0)),"") ->  | B15: =IF(A15="","",VLOOKUP(A15,BD!B:C,2,0)) -> 
A16: =IF(ROW()-8<=MAX(calc!F:F),INDEX(BD!B:B,MATCH(ROW()-8,calc!F:F,0)),"") ->  | B16: =IF(A16="","",VLOOKUP(A16,BD!B:C,2,0)) -> 
A17: =IF(ROW()-8<=MAX(calc!F:F),INDEX(BD!B:B,MATCH(ROW()-8,calc!F:F,0)),"") ->  | B17: =IF(A17="","",VLOOKUP(A17,BD!B:C,2,0)) -> 
A18: =IF(ROW()-8<=MAX(calc!F:F),INDEX(BD!B:B,MATCH(ROW()-8,calc!F:F,0)),"") ->  | B18: =IF(A18="","",VLOOKUP(A18,BD!B:C,2,0)) -> 
A19: =IF(ROW()-8<=MAX(calc!F:F),INDEX(BD!B:B,MATCH(ROW()-8,calc!F:F,0)),"") ->  | B19: =IF(A19="","",VLOOKUP(A19,BD!B:C,2,0)) -> 
A20: =IF(ROW()-8<=MAX(calc!F:F),INDEX(BD!B:B,MATCH(ROW()-8,calc!F:F,0)),"") ->  | B20: =IF(A20="","",VLOOKUP(A20,BD!B:C,2,0)) -> 
A21: =IF(ROW()-8<=MAX(calc!F:F),INDEX(BD!B:B,MATCH(ROW()-8,calc!F:F,0)),"") ->  | B21: =IF(A21="","",VLOOKUP(A21,BD!B:C,2,0)) -> 
A22: =IF(ROW()-8<=MAX(calc!F:F),INDEX(BD!B:B,MATCH(ROW()-8,calc!F:F,0)),"") ->  | B22: =IF(A22="","",VLOOKUP(A22,BD!B:C,2,0)) -> 
A23: =IF(ROW()-8<=MAX(calc!F:F),INDEX(BD!B:B,MATCH(ROW()-8,calc!F:F,0)),"") ->  | B23: =IF(A23="","",VLOOKUP(A23,BD!B:C,2,0)) -> 
A24: =IF(ROW()-8<=MAX(calc!F:F),INDEX(BD!B:B,MATCH(ROW()-8,calc!F:F,0)),"") ->  | B24: =IF(A24="","",VLOOKUP(A24,BD!B:C,2,0)) -> 
A25: =IF(ROW()-8<=MAX(calc!F:F),INDEX(BD!B:B,MATCH(ROW()-8,calc!F:F,0)),"") ->  | B25: =IF(A25="","",VLOOKUP(A25,BD!B:C,2,0)) -> 
A26: =IF(ROW()-8<=MAX(calc!F:F),INDEX(BD!B:B,MATCH(ROW()-8,calc!F:F,0)),"") ->  | B26: =IF(A26="","",VLOOKUP(A26,BD!B:C,2,0)) -> 
A27: =IF(ROW()-8<=MAX(calc!F:F),INDEX(BD!B:B,MATCH(ROW()-8,calc!F:F,0)),"") ->  | B27: =IF(A27="","",VLOOKUP(A27,BD!B:C,2,0)) -> 
A28: =IF(ROW()-8<=MAX(calc!F:F),INDEX(BD!B:B,MATCH(ROW()-8,calc!F:F,0)),"") ->  | B28: =IF(A28="","",VLOOKUP(A28,BD!B:C,2,0)) -> 
A29: =IF(ROW()-8<=MAX(calc!F:F),INDEX(BD!B:B,MATCH(ROW()-8,calc!F:F,0)),"") ->  | B29: =IF(A29="","",VLOOKUP(A29,BD!B:C,2,0)) -> 
A30: =IF(ROW()-8<=MAX(calc!F:F),INDEX(BD!B:B,MATCH(ROW()-8,calc!F:F,0)),"") ->  | B30: =IF(A30="","",VLOOKUP(A30,BD!B:C,2,0)) -> 
A31: =IF(ROW()-8<=MAX(calc!F:F),INDEX(BD!B:B,MATCH(ROW()-8,calc!F:F,0)),"") ->  | B31: =IF(A31="","",VLOOKUP(A31,BD!B:C,2,0)) -> 
A32: =IF(ROW()-8<=MAX(calc!F:F),INDEX(BD!B:B,MATCH(ROW()-8,calc!F:F,0)),"") ->  | B32: =IF(A32="","",VLOOKUP(A32,BD!B:C,2,0)) -> 
A33: =IF(ROW()-8<=MAX(calc!F:F),INDEX(BD!B:B,MATCH(ROW()-8,calc!F:F,0)),"") ->  | B33: =IF(A33="","",VLOOKUP(A33,BD!B:C,2,0)) -> 
A34: =IF(ROW()-8<=MAX(calc!F:F),INDEX(BD!B:B,MATCH(ROW()-8,calc!F:F,0)),"") ->  | B34: =IF(A34="","",VLOOKUP(A34,BD!B:C,2,0)) -> 
A35: =IF(ROW()-8<=MAX(calc!F:F),INDEX(BD!B:B,MATCH(ROW()-8,calc!F:F,0)),"") ->  | B35: =IF(A35="","",VLOOKUP(A35,BD!B:C,2,0)) -> 
A36: =IF(ROW()-8<=MAX(calc!F:F),INDEX(BD!B:B,MATCH(ROW()-8,calc!F:F,0)),"") ->  | B36: =IF(A36="","",VLOOKUP(A36,BD!B:C,2,0)) -> 
A37: =IF(ROW()-8<=MAX(calc!F:F),INDEX(BD!B:B,MATCH(ROW()-8,calc!F:F,0)),"") ->  | B37: =IF(A37="","",VLOOKUP(A37,BD!B:C,2,0)) -> 
A38: =IF(ROW()-8<=MAX(calc!F:F),INDEX(BD!B:B,MATCH(ROW()-8,calc!F:F,0)),"") ->  | B38: =IF(A38="","",VLOOKUP(A38,BD!B:C,2,0)) -> 
A39: =IF(ROW()-8<=MAX(calc!F:F),INDEX(BD!B:B,MATCH(ROW()-8,calc!F:F,0)),"") ->  | B39: =IF(A39="","",VLOOKUP(A39,BD!B:C,2,0)) -> 
A40: =IF(ROW()-8<=MAX(calc!F:F),INDEX(BD!B:B,MATCH(ROW()-8,calc!F:F,0)),"") ->  | B40: =IF(A40="","",VLOOKUP(A40,BD!B:C,2,0)) -> 
A41: =IF(ROW()-8<=MAX(calc!F:F),INDEX(BD!B:B,MATCH(ROW()-8,calc!F:F,0)),"") ->  | B41: =IF(A41="","",VLOOKUP(A41,BD!B:C,2,0)) -> 
A42: =IF(ROW()-8<=MAX(calc!F:F),INDEX(BD!B:B,MATCH(ROW()-8,calc!F:F,0)),"") ->  | B42: =IF(A42="","",VLOOKUP(A42,BD!B:C,2,0)) -> 
A43: =IF(ROW()-8<=MAX(calc!F:F),INDEX(BD!B:B,MATCH(ROW()-8,calc!F:F,0)),"") ->  | B43: =IF(A43="","",VLOOKUP(A43,BD!B:C,2,0)) -> 
A44: =IF(ROW()-8<=MAX(calc!F:F),INDEX(BD!B:B,MATCH(ROW()-8,calc!F:F,0)),"") ->  | B44: =IF(A44="","",VLOOKUP(A44,BD!B:C,2,0)) -> 
A45: =IF(ROW()-8<=MAX(calc!F:F),INDEX(BD!B:B,MATCH(ROW()-8,calc!F:F,0)),"") ->  | B45: =IF(A45="","",VLOOKUP(A45,BD!B:C,2,0)) -> 
A46: =IF(ROW()-8<=MAX(calc!F:F),INDEX(BD!B:B,MATCH(ROW()-8,calc!F:F,0)),"") ->  | B46: =IF(A46="","",VLOOKUP(A46,BD!B:C,2,0)) -> 
A47: =IF(ROW()-8<=MAX(calc!F:F),INDEX(BD!B:B,MATCH(ROW()-8,calc!F:F,0)),"") ->  | B47: =IF(A47="","",VLOOKUP(A47,BD!B:C,2,0)) -> 
A48: =IF(ROW()-8<=MAX(calc!F:F),INDEX(BD!B:B,MATCH(ROW()-8,calc!F:F,0)),"") ->  | B48: =IF(A48="","",VLOOKUP(A48,BD!B:C,2,0)) -> 
A49: =IF(ROW()-8<=MAX(calc!F:F),INDEX(BD!B:B,MATCH(ROW()-8,calc!F:F,0)),"") ->  | B49: =IF(A49="","",VLOOKUP(A49,BD!B:C,2,0)) -> 
A50: =IF(ROW()-8<=MAX(calc!F:F),INDEX(BD!B:B,MATCH(ROW()-8,calc!F:F,0)),"") ->  | B50: =IF(A50="","",VLOOKUP(A50,BD!B:C,2,0)) -> 
A51: =IF(ROW()-8<=MAX(calc!F:F),INDEX(BD!B:B,MATCH(ROW()-8,calc!F:F,0)),"") ->  | B51: =IF(A51="","",VLOOKUP(A51,BD!B:C,2,0)) -> 
A52: =IF(ROW()-8<=MAX(calc!F:F),INDEX(BD!B:B,MATCH(ROW()-8,calc!F:F,0)),"") ->  | B52: =IF(A52="","",VLOOKUP(A52,BD!B:C,2,0)) -> 
A53: =IF(ROW()-8<=MAX(calc!F:F),INDEX(BD!B:B,MATCH(ROW()-8,calc!F:F,0)),"") ->  | B53: =IF(A53="","",VLOOKUP(A53,BD!B:C,2,0)) -> 
A54: =IF(ROW()-8<=MAX(calc!F:F),INDEX(BD!B:B,MATCH(ROW()-8,calc!F:F,0)),"") ->  | B54: =IF(A54="","",VLOOKUP(A54,BD!B:C,2,0)) -> 
A55: =IF(ROW()-8<=MAX(calc!F:F),INDEX(BD!B:B,MATCH(ROW()-8,calc!F:F,0)),"") ->  | B55: =IF(A55="","",VLOOKUP(A55,BD!B:C,2,0)) -> 
A56: =IF(ROW()-8<=MAX(calc!F:F),INDEX(BD!B:B,MATCH(ROW()-8,calc!F:F,0)),"") ->  | B56: =IF(A56="","",VLOOKUP(A56,BD!B:C,2,0)) -> 
A57: =IF(ROW()-8<=MAX(calc!F:F),INDEX(BD!B:B,MATCH(ROW()-8,calc!F:F,0)),"") ->  | B57: =IF(A57="","",VLOOKUP(A57,BD!B:C,2,0)) -> 
A58: =IF(ROW()-8<=MAX(calc!F:F),INDEX(BD!B:B,MATCH(ROW()-8,calc!F:F,0)),"") ->  | B58: =IF(A58="","",VLOOKUP(A58,BD!B:C,2,0)) -> 
A59: =IF(ROW()-8<=MAX(calc!F:F),INDEX(BD!B:B,MATCH(ROW()-8,calc!F:F,0)),"") ->  | B59: =IF(A59="","",VLOOKUP(A59,BD!B:C,2,0)) -> 
A60: =IF(ROW()-8<=MAX(calc!F:F),INDEX(BD!B:B,MATCH(ROW()-8,calc!F:F,0)),"") ->  | B60: =IF(A60="","",VLOOKUP(A60,BD!B:C,2,0)) -> 
A61: =IF(ROW()-8<=MAX(calc!F:F),INDEX(BD!B:B,MATCH(ROW()-8,calc!F:F,0)),"") ->  | B61: =IF(A61="","",VLOOKUP(A61,BD!B:C,2,0)) -> 
A62: =IF(ROW()-8<=MAX(calc!F:F),INDEX(BD!B:B,MATCH(ROW()-8,calc!F:F,0)),"") ->  | B62: =IF(A62="","",VLOOKUP(A62,BD!B:C,2,0)) -> 
A63: =IF(ROW()-8<=MAX(calc!F:F),INDEX(BD!B:B,MATCH(ROW()-8,calc!F:F,0)),"") ->  | B63: =IF(A63="","",VLOOKUP(A63,BD!B:C,2,0)) -> 
A64: =IF(ROW()-8<=MAX(calc!F:F),INDEX(BD!B:B,MATCH(ROW()-8,calc!F:F,0)),"") ->  | B64: =IF(A64="","",VLOOKUP(A64,BD!B:C,2,0)) -> 
A65: =IF(ROW()-8<=MAX(calc!F:F),INDEX(BD!B:B,MATCH(ROW()-8,calc!F:F,0)),"") ->  | B65: =IF(A65="","",VLOOKUP(A65,BD!B:C,2,0)) -> 
A66: =IF(ROW()-8<=MAX(calc!F:F),INDEX(BD!B:B,MATCH(ROW()-8,calc!F:F,0)),"") ->  | B66: =IF(A66="","",VLOOKUP(A66,BD!B:C,2,0)) -> 
A67: =IF(ROW()-8<=MAX(calc!F:F),INDEX(BD!B:B,MATCH(ROW()-8,calc!F:F,0)),"") ->  | B67: =IF(A67="","",VLOOKUP(A67,BD!B:C,2,0)) -> 
A68: =IF(ROW()-8<=MAX(calc!F:F),INDEX(BD!B:B,MATCH(ROW()-8,calc!F:F,0)),"") ->  | B68: =IF(A68="","",VLOOKUP(A68,BD!B:C,2,0)) -> 
A69: =IF(ROW()-8<=MAX(calc!F:F),INDEX(BD!B:B,MATCH(ROW()-8,calc!F:F,0)),"") ->  | B69: =IF(A69="","",VLOOKUP(A69,BD!B:C,2,0)) -> 
A70: =IF(ROW()-8<=MAX(calc!F:F),INDEX(BD!B:B,MATCH(ROW()-8,calc!F:F,0)),"") ->  | B70: =IF(A70="","",VLOOKUP(A70,BD!B:C,2,0)) -> 
A71: =IF(ROW()-8<=MAX(calc!F:F),INDEX(BD!B:B,MATCH(ROW()-8,calc!F:F,0)),"") ->  | B71: =IF(A71="","",VLOOKUP(A71,BD!B:C,2,0)) -> 
A72: =IF(ROW()-8<=MAX(calc!F:F),INDEX(BD!B:B,MATCH(ROW()-8,calc!F:F,0)),"") ->  | B72: =IF(A72="","",VLOOKUP(A72,BD!B:C,2,0)) -> 
A73: =IF(ROW()-8<=MAX(calc!F:F),INDEX(BD!B:B,MATCH(ROW()-8,calc!F:F,0)),"") ->  | B73: =IF(A73="","",VLOOKUP(A73,BD!B:C,2,0)) -> 
A74: =IF(ROW()-8<=MAX(calc!F:F),INDEX(BD!B:B,MATCH(ROW()-8,calc!F:F,0)),"") ->  | B74: =IF(A74="","",VLOOKUP(A74,BD!B:C,2,0)) -> 
A75: =IF(ROW()-8<=MAX(calc!F:F),INDEX(BD!B:B,MATCH(ROW()-8,calc!F:F,0)),"") ->  | B75: =IF(A75="","",VLOOKUP(A75,BD!B:C,2,0)) -> 
A76: =IF(ROW()-8<=MAX(calc!F:F),INDEX(BD!B:B,MATCH(ROW()-8,calc!F:F,0)),"") ->  | B76: =IF(A76="","",VLOOKUP(A76,BD!B:C,2,0)) -> 
A77: =IF(ROW()-8<=MAX(calc!F:F),INDEX(BD!B:B,MATCH(ROW()-8,calc!F:F,0)),"") ->  | B77: =IF(A77="","",VLOOKUP(A77,BD!B:C,2,0)) -> 
A78: =IF(ROW()-8<=MAX(calc!F:F),INDEX(BD!B:B,MATCH(ROW()-8,calc!F:F,0)),"") ->  | B78: =IF(A78="","",VLOOKUP(A78,BD!B:C,2,0)) -> 
A79: =IF(ROW()-8<=MAX(calc!F:F),INDEX(BD!B:B,MATCH(ROW()-8,calc!F:F,0)),"") ->  | B79: =IF(A79="","",VLOOKUP(A79,BD!B:C,2,0)) -> 
A80: =IF(ROW()-8<=MAX(calc!F:F),INDEX(BD!B:B,MATCH(ROW()-8,calc!F:F,0)),"") ->  | B80: =IF(A80="","",VLOOKUP(A80,BD!B:C,2,0)) -> 
A81: =IF(ROW()-8<=MAX(calc!F:F),INDEX(BD!B:B,MATCH(ROW()-8,calc!F:F,0)),"") ->  | B81: =IF(A81="","",VLOOKUP(A81,BD!B:C,2,0)) -> 
A82: =IF(ROW()-8<=MAX(calc!F:F),INDEX(BD!B:B,MATCH(ROW()-8,calc!F:F,0)),"") ->  | B82: =IF(A82="","",VLOOKUP(A82,BD!B:C,2,0)) -> 
A83: =IF(ROW()-8<=MAX(calc!F:F),INDEX(BD!B:B,MATCH(ROW()-8,calc!F:F,0)),"") ->  | B83: =IF(A83="","",VLOOKUP(A83,BD!B:C,2,0)) -> 
A84: =IF(ROW()-8<=MAX(calc!F:F),INDEX(BD!B:B,MATCH(ROW()-8,calc!F:F,0)),"") ->  | B84: =IF(A84="","",VLOOKUP(A84,BD!B:C,2,0)) -> 
A85: =IF(ROW()-8<=MAX(calc!F:F),INDEX(BD!B:B,MATCH(ROW()-8,calc!F:F,0)),"") ->  | B85: =IF(A85="","",VLOOKUP(A85,BD!B:C,2,0)) -> 
A86: =IF(ROW()-8<=MAX(calc!F:F),INDEX(BD!B:B,MATCH(ROW()-8,calc!F:F,0)),"") ->  | B86: =IF(A86="","",VLOOKUP(A86,BD!B:C,2,0)) -> 
A87: =IF(ROW()-8<=MAX(calc!F:F),INDEX(BD!B:B,MATCH(ROW()-8,calc!F:F,0)),"") ->  | B87: =IF(A87="","",VLOOKUP(A87,BD!B:C,2,0)) -> 
A88: =IF(ROW()-8<=MAX(calc!F:F),INDEX(BD!B:B,MATCH(ROW()-8,calc!F:F,0)),"") ->  | B88: =IF(A88="","",VLOOKUP(A88,BD!B:C,2,0)) -> 
A89: =IF(ROW()-8<=MAX(calc!F:F),INDEX(BD!B:B,MATCH(ROW()-8,calc!F:F,0)),"") ->  | B89: =IF(A89="","",VLOOKUP(A89,BD!B:C,2,0)) -> 
A90: =IF(ROW()-8<=MAX(calc!F:F),INDEX(BD!B:B,MATCH(ROW()-8,calc!F:F,0)),"") ->  | B90: =IF(A90="","",VLOOKUP(A90,BD!B:C,2,0)) -> 
A91: =IF(ROW()-8<=MAX(calc!F:F),INDEX(BD!B:B,MATCH(ROW()-8,calc!F:F,0)),"") ->  | B91: =IF(A91="","",VLOOKUP(A91,BD!B:C,2,0)) -> 
A92: =IF(ROW()-8<=MAX(calc!F:F),INDEX(BD!B:B,MATCH(ROW()-8,calc!F:F,0)),"") ->  | B92: =IF(A92="","",VLOOKUP(A92,BD!B:C,2,0)) -> 
A93: =IF(ROW()-8<=MAX(calc!F:F),INDEX(BD!B:B,MATCH(ROW()-8,calc!F:F,0)),"") ->  | B93: =IF(A93="","",VLOOKUP(A93,BD!B:C,2,0)) -> 
A94: =IF(ROW()-8<=MAX(calc!F:F),INDEX(BD!B:B,MATCH(ROW()-8,calc!F:F,0)),"") ->  | B94: =IF(A94="","",VLOOKUP(A94,BD!B:C,2,0)) -> 
A95: =IF(ROW()-8<=MAX(calc!F:F),INDEX(BD!B:B,MATCH(ROW()-8,calc!F:F,0)),"") ->  | B95: =IF(A95="","",VLOOKUP(A95,BD!B:C,2,0)) -> 
A96: =IF(ROW()-8<=MAX(calc!F:F),INDEX(BD!B:B,MATCH(ROW()-8,calc!F:F,0)),"") ->  | B96: =IF(A96="","",VLOOKUP(A96,BD!B:C,2,0)) -> 
A97: =IF(ROW()-8<=MAX(calc!F:F),INDEX(BD!B:B,MATCH(ROW()-8,calc!F:F,0)),"") ->  | B97: =IF(A97="","",VLOOKUP(A97,BD!B:C,2,0)) -> 
A98: =IF(ROW()-8<=MAX(calc!F:F),INDEX(BD!B:B,MATCH(ROW()-8,calc!F:F,0)),"") ->  | B98: =IF(A98="","",VLOOKUP(A98,BD!B:C,2,0)) -> 
A99: =IF(ROW()-8<=MAX(calc!F:F),INDEX(BD!B:B,MATCH(ROW()-8,calc!F:F,0)),"") ->  | B99: =IF(A99="","",VLOOKUP(A99,BD!B:C,2,0)) -> 
A100: =IF(ROW()-8<=MAX(calc!F:F),INDEX(BD!B:B,MATCH(ROW()-8,calc!F:F,0)),"") ->  | B100: =IF(A100="","",VLOOKUP(A100,BD!B:C,2,0)) -> 
A101: =IF(ROW()-8<=MAX(calc!F:F),INDEX(BD!B:B,MATCH(ROW()-8,calc!F:F,0)),"") ->  | B101: =IF(A101="","",VLOOKUP(A101,BD!B:C,2,0)) -> 
A102: =IF(ROW()-8<=MAX(calc!F:F),INDEX(BD!B:B,MATCH(ROW()-8,calc!F:F,0)),"") ->  | B102: =IF(A102="","",VLOOKUP(A102,BD!B:C,2,0)) -> 
A103: =IF(ROW()-8<=MAX(calc!F:F),INDEX(BD!B:B,MATCH(ROW()-8,calc!F:F,0)),"") ->  | B103: =IF(A103="","",VLOOKUP(A103,BD!B:C,2,0)) -> 
A104: =IF(ROW()-8<=MAX(calc!F:F),INDEX(BD!B:B,MATCH(ROW()-8,calc!F:F,0)),"") ->  | B104: =IF(A104="","",VLOOKUP(A104,BD!B:C,2,0)) -> 
A105: =IF(ROW()-8<=MAX(calc!F:F),INDEX(BD!B:B,MATCH(ROW()-8,calc!F:F,0)),"") ->  | B105: =IF(A105="","",VLOOKUP(A105,BD!B:C,2,0)) -> 
A106: =IF(ROW()-8<=MAX(calc!F:F),INDEX(BD!B:B,MATCH(ROW()-8,calc!F:F,0)),"") ->  | B106: =IF(A106="","",VLOOKUP(A106,BD!B:C,2,0)) -> 
A107: =IF(ROW()-8<=MAX(calc!F:F),INDEX(BD!B:B,MATCH(ROW()-8,calc!F:F,0)),"") ->  | B107: =IF(A107="","",VLOOKUP(A107,BD!B:C,2,0)) -> 
A108: =IF(ROW()-8<=MAX(calc!F:F),INDEX(BD!B:B,MATCH(ROW()-8,calc!F:F,0)),"") ->  | B108: =IF(A108="","",VLOOKUP(A108,BD!B:C,2,0)) -> 
A109: =IF(ROW()-8<=MAX(calc!F:F),INDEX(BD!B:B,MATCH(ROW()-8,calc!F:F,0)),"") ->  | B109: =IF(A109="","",VLOOKUP(A109,BD!B:C,2,0)) -> 
A110: =IF(ROW()-8<=MAX(calc!F:F),INDEX(BD!B:B,MATCH(ROW()-8,calc!F:F,0)),"") ->  | B110: =IF(A110="","",VLOOKUP(A110,BD!B:C,2,0)) -> 
A111: =IF(ROW()-8<=MAX(calc!F:F),INDEX(BD!B:B,MATCH(ROW()-8,calc!F:F,0)),"") ->  | B111: =IF(A111="","",VLOOKUP(A111,BD!B:C,2,0)) -> 
A112: =IF(ROW()-8<=MAX(calc!F:F),INDEX(BD!B:B,MATCH(ROW()-8,calc!F:F,0)),"") ->  | B112: =IF(A112="","",VLOOKUP(A112,BD!B:C,2,0)) -> 
A113: =IF(ROW()-8<=MAX(calc!F:F),INDEX(BD!B:B,MATCH(ROW()-8,calc!F:F,0)),"") ->  | B113: =IF(A113="","",VLOOKUP(A113,BD!B:C,2,0)) -> 
A114: =IF(ROW()-8<=MAX(calc!F:F),INDEX(BD!B:B,MATCH(ROW()-8,calc!F:F,0)),"") ->  | B114: =IF(A114="","",VLOOKUP(A114,BD!B:C,2,0)) -> 
A115: =IF(ROW()-8<=MAX(calc!F:F),INDEX(BD!B:B,MATCH(ROW()-8,calc!F:F,0)),"") ->  | B115: =IF(A115="","",VLOOKUP(A115,BD!B:C,2,0)) -> 
A116: =IF(ROW()-8<=MAX(calc!F:F),INDEX(BD!B:B,MATCH(ROW()-8,calc!F:F,0)),"") ->  | B116: =IF(A116="","",VLOOKUP(A116,BD!B:C,2,0)) -> 
A117: =IF(ROW()-8<=MAX(calc!F:F),INDEX(BD!B:B,MATCH(ROW()-8,calc!F:F,0)),"") ->  | B117: =IF(A117="","",VLOOKUP(A117,BD!B:C,2,0)) -> 
A118: =IF(ROW()-8<=MAX(calc!F:F),INDEX(BD!B:B,MATCH(ROW()-8,calc!F:F,0)),"") ->  | B118: =IF(A118="","",VLOOKUP(A118,BD!B:C,2,0)) -> 
A119: =IF(ROW()-8<=MAX(calc!F:F),INDEX(BD!B:B,MATCH(ROW()-8,calc!F:F,0)),"") ->  | B119: =IF(A119="","",VLOOKUP(A119,BD!B:C,2,0)) -> 
A120: =IF(ROW()-8<=MAX(calc!F:F),INDEX(BD!B:B,MATCH(ROW()-8,calc!F:F,0)),"") ->  | B120: =IF(A120="","",VLOOKUP(A120,BD!B:C,2,0)) -> 
A121: =IF(ROW()-8<=MAX(calc!F:F),INDEX(BD!B:B,MATCH(ROW()-8,calc!F:F,0)),"") ->  | B121: =IF(A121="","",VLOOKUP(A121,BD!B:C,2,0)) -> 
A122: =IF(ROW()-8<=MAX(calc!F:F),INDEX(BD!B:B,MATCH(ROW()-8,calc!F:F,0)),"") ->  | B122: =IF(A122="","",VLOOKUP(A122,BD!B:C,2,0)) -> 
A123: =IF(ROW()-8<=MAX(calc!F:F),INDEX(BD!B:B,MATCH(ROW()-8,calc!F:F,0)),"") ->  | B123: =IF(A123="","",VLOOKUP(A123,BD!B:C,2,0)) -> 
A124: =IF(ROW()-8<=MAX(calc!F:F),INDEX(BD!B:B,MATCH(ROW()-8,calc!F:F,0)),"") ->  | B124: =IF(A124="","",VLOOKUP(A124,BD!B:C,2,0)) -> 
A125: =IF(ROW()-8<=MAX(calc!F:F),INDEX(BD!B:B,MATCH(ROW()-8,calc!F:F,0)),"") ->  | B125: =IF(A125="","",VLOOKUP(A125,BD!B:C,2,0)) -> 
A126: =IF(ROW()-8<=MAX(calc!F:F),INDEX(BD!B:B,MATCH(ROW()-8,calc!F:F,0)),"") ->  | B126: =IF(A126="","",VLOOKUP(A126,BD!B:C,2,0)) -> 
A127: =IF(ROW()-8<=MAX(calc!F:F),INDEX(BD!B:B,MATCH(ROW()-8,calc!F:F,0)),"") ->  | B127: =IF(A127="","",VLOOKUP(A127,BD!B:C,2,0)) -> 
A128: =IF(ROW()-8<=MAX(calc!F:F),INDEX(BD!B:B,MATCH(ROW()-8,calc!F:F,0)),"") ->  | B128: =IF(A128="","",VLOOKUP(A128,BD!B:C,2,0)) -> 
A129: =IF(ROW()-8<=MAX(calc!F:F),INDEX(BD!B:B,MATCH(ROW()-8,calc!F:F,0)),"") ->  | B129: =IF(A129="","",VLOOKUP(A129,BD!B:C,2,0)) -> 
A130: =IF(ROW()-8<=MAX(calc!F:F),INDEX(BD!B:B,MATCH(ROW()-8,calc!F:F,0)),"") ->  | B130: =IF(A130="","",VLOOKUP(A130,BD!B:C,2,0)) -> 
A131: =IF(ROW()-8<=MAX(calc!F:F),INDEX(BD!B:B,MATCH(ROW()-8,calc!F:F,0)),"") ->  | B131: =IF(A131="","",VLOOKUP(A131,BD!B:C,2,0)) -> 
A132: =IF(ROW()-8<=MAX(calc!F:F),INDEX(BD!B:B,MATCH(ROW()-8,calc!F:F,0)),"") ->  | B132: =IF(A132="","",VLOOKUP(A132,BD!B:C,2,0)) -> 
A133: =IF(ROW()-8<=MAX(calc!F:F),INDEX(BD!B:B,MATCH(ROW()-8,calc!F:F,0)),"") ->  | B133: =IF(A133="","",VLOOKUP(A133,BD!B:C,2,0)) -> 
A134: =IF(ROW()-8<=MAX(calc!F:F),INDEX(BD!B:B,MATCH(ROW()-8,calc!F:F,0)),"") ->  | B134: =IF(A134="","",VLOOKUP(A134,BD!B:C,2,0)) -> 
A135: =IF(ROW()-8<=MAX(calc!F:F),INDEX(BD!B:B,MATCH(ROW()-8,calc!F:F,0)),"") ->  | B135: =IF(A135="","",VLOOKUP(A135,BD!B:C,2,0)) -> 
A136: =IF(ROW()-8<=MAX(calc!F:F),INDEX(BD!B:B,MATCH(ROW()-8,calc!F:F,0)),"") ->  | B136: =IF(A136="","",VLOOKUP(A136,BD!B:C,2,0)) -> 
A137: =IF(ROW()-8<=MAX(calc!F:F),INDEX(BD!B:B,MATCH(ROW()-8,calc!F:F,0)),"") ->  | B137: =IF(A137="","",VLOOKUP(A137,BD!B:C,2,0)) -> 
A138: =IF(ROW()-8<=MAX(calc!F:F),INDEX(BD!B:B,MATCH(ROW()-8,calc!F:F,0)),"") ->  | B138: =IF(A138="","",VLOOKUP(A138,BD!B:C,2,0)) -> 
A139: =IF(ROW()-8<=MAX(calc!F:F),INDEX(BD!B:B,MATCH(ROW()-8,calc!F:F,0)),"") ->  | B139: =IF(A139="","",VLOOKUP(A139,BD!B:C,2,0)) -> 
A140: =IF(ROW()-8<=MAX(calc!F:F),INDEX(BD!B:B,MATCH(ROW()-8,calc!F:F,0)),"") ->  | B140: =IF(A140="","",VLOOKUP(A140,BD!B:C,2,0)) -> 
A141: =IF(ROW()-8<=MAX(calc!F:F),INDEX(BD!B:B,MATCH(ROW()-8,calc!F:F,0)),"") ->  | B141: =IF(A141="","",VLOOKUP(A141,BD!B:C,2,0)) -> 
A142: =IF(ROW()-8<=MAX(calc!F:F),INDEX(BD!B:B,MATCH(ROW()-8,calc!F:F,0)),"") ->  | B142: =IF(A142="","",VLOOKUP(A142,BD!B:C,2,0)) -> 
A143: =IF(ROW()-8<=MAX(calc!F:F),INDEX(BD!B:B,MATCH(ROW()-8,calc!F:F,0)),"") ->  | B143: =IF(A143="","",VLOOKUP(A143,BD!B:C,2,0)) -> 
A144: =IF(ROW()-8<=MAX(calc!F:F),INDEX(BD!B:B,MATCH(ROW()-8,calc!F:F,0)),"") ->  | B144: =IF(A144="","",VLOOKUP(A144,BD!B:C,2,0)) -> 
A145: =IF(ROW()-8<=MAX(calc!F:F),INDEX(BD!B:B,MATCH(ROW()-8,calc!F:F,0)),"") ->  | B145: =IF(A145="","",VLOOKUP(A145,BD!B:C,2,0)) -> 
A146: =IF(ROW()-8<=MAX(calc!F:F),INDEX(BD!B:B,MATCH(ROW()-8,calc!F:F,0)),"") ->  | B146: =IF(A146="","",VLOOKUP(A146,BD!B:C,2,0)) -> 
A147: =IF(ROW()-8<=MAX(calc!F:F),INDEX(BD!B:B,MATCH(ROW()-8,calc!F:F,0)),"") ->  | B147: =IF(A147="","",VLOOKUP(A147,BD!B:C,2,0)) -> 
A148: =IF(ROW()-8<=MAX(calc!F:F),INDEX(BD!B:B,MATCH(ROW()-8,calc!F:F,0)),"") ->  | B148: =IF(A148="","",VLOOKUP(A148,BD!B:C,2,0)) -> 
A149: =IF(ROW()-8<=MAX(calc!F:F),INDEX(BD!B:B,MATCH(ROW()-8,calc!F:F,0)),"") ->  | B149: =IF(A149="","",VLOOKUP(A149,BD!B:C,2,0)) -> 
A150: =IF(ROW()-8<=MAX(calc!F:F),INDEX(BD!B:B,MATCH(ROW()-8,calc!F:F,0)),"") ->  | B150: =IF(A150="","",VLOOKUP(A150,BD!B:C,2,0)) -> 
A151: =IF(ROW()-8<=MAX(calc!F:F),INDEX(BD!B:B,MATCH(ROW()-8,calc!F:F,0)),"") ->  | B151: =IF(A151="","",VLOOKUP(A151,BD!B:C,2,0)) -> 
A152: =IF(ROW()-8<=MAX(calc!F:F),INDEX(BD!B:B,MATCH(ROW()-8,calc!F:F,0)),"") ->  | B152: =IF(A152="","",VLOOKUP(A152,BD!B:C,2,0)) -> 
A153: =IF(ROW()-8<=MAX(calc!F:F),INDEX(BD!B:B,MATCH(ROW()-8,calc!F:F,0)),"") ->  | B153: =IF(A153="","",VLOOKUP(A153,BD!B:C,2,0)) -> 
A154: =IF(ROW()-8<=MAX(calc!F:F),INDEX(BD!B:B,MATCH(ROW()-8,calc!F:F,0)),"") ->  | B154: =IF(A154="","",VLOOKUP(A154,BD!B:C,2,0)) -> 
A155: =IF(ROW()-8<=MAX(calc!F:F),INDEX(BD!B:B,MATCH(ROW()-8,calc!F:F,0)),"") ->  | B155: =IF(A155="","",VLOOKUP(A155,BD!B:C,2,0)) -> 
A156: =IF(ROW()-8<=MAX(calc!F:F),INDEX(BD!B:B,MATCH(ROW()-8,calc!F:F,0)),"") ->  | B156: =IF(A156="","",VLOOKUP(A156,BD!B:C,2,0)) -> 
A157: =IF(ROW()-8<=MAX(calc!F:F),INDEX(BD!B:B,MATCH(ROW()-8,calc!F:F,0)),"") ->  | B157: =IF(A157="","",VLOOKUP(A157,BD!B:C,2,0)) -> 
A158: =IF(ROW()-8<=MAX(calc!F:F),INDEX(BD!B:B,MATCH(ROW()-8,calc!F:F,0)),"") ->  | B158: =IF(A158="","",VLOOKUP(A158,BD!B:C,2,0)) -> 
A159: =IF(ROW()-8<=MAX(calc!F:F),INDEX(BD!B:B,MATCH(ROW()-8,calc!F:F,0)),"") ->  | B159: =IF(A159="","",VLOOKUP(A159,BD!B:C,2,0)) -> 
A160: =IF(ROW()-8<=MAX(calc!F:F),INDEX(BD!B:B,MATCH(ROW()-8,calc!F:F,0)),"") ->  | B160: =IF(A160="","",VLOOKUP(A160,BD!B:C,2,0)) -> 
A161: =IF(ROW()-8<=MAX(calc!F:F),INDEX(BD!B:B,MATCH(ROW()-8,calc!F:F,0)),"") ->  | B161: =IF(A161="","",VLOOKUP(A161,BD!B:C,2,0)) -> 
A162: =IF(ROW()-8<=MAX(calc!F:F),INDEX(BD!B:B,MATCH(ROW()-8,calc!F:F,0)),"") ->  | B162: =IF(A162="","",VLOOKUP(A162,BD!B:C,2,0)) -> 
A163: =IF(ROW()-8<=MAX(calc!F:F),INDEX(BD!B:B,MATCH(ROW()-8,calc!F:F,0)),"") ->  | B163: =IF(A163="","",VLOOKUP(A163,BD!B:C,2,0)) -> 
A164: =IF(ROW()-8<=MAX(calc!F:F),INDEX(BD!B:B,MATCH(ROW()-8,calc!F:F,0)),"") ->  | B164: =IF(A164="","",VLOOKUP(A164,BD!B:C,2,0)) -> 
A165: =IF(ROW()-8<=MAX(calc!F:F),INDEX(BD!B:B,MATCH(ROW()-8,calc!F:F,0)),"") ->  | B165: =IF(A165="","",VLOOKUP(A165,BD!B:C,2,0)) -> 
A166: =IF(ROW()-8<=MAX(calc!F:F),INDEX(BD!B:B,MATCH(ROW()-8,calc!F:F,0)),"") ->  | B166: =IF(A166="","",VLOOKUP(A166,BD!B:C,2,0)) -> 
A167: =IF(ROW()-8<=MAX(calc!F:F),INDEX(BD!B:B,MATCH(ROW()-8,calc!F:F,0)),"") ->  | B167: =IF(A167="","",VLOOKUP(A167,BD!B:C,2,0)) -> 
A168: =IF(ROW()-8<=MAX(calc!F:F),INDEX(BD!B:B,MATCH(ROW()-8,calc!F:F,0)),"") ->  | B168: =IF(A168="","",VLOOKUP(A168,BD!B:C,2,0)) -> 
A169: =IF(ROW()-8<=MAX(calc!F:F),INDEX(BD!B:B,MATCH(ROW()-8,calc!F:F,0)),"") ->  | B169: =IF(A169="","",VLOOKUP(A169,BD!B:C,2,0)) -> 
A170: =IF(ROW()-8<=MAX(calc!F:F),INDEX(BD!B:B,MATCH(ROW()-8,calc!F:F,0)),"") ->  | B170: =IF(A170="","",VLOOKUP(A170,BD!B:C,2,0)) -> 
A171: =IF(ROW()-8<=MAX(calc!F:F),INDEX(BD!B:B,MATCH(ROW()-8,calc!F:F,0)),"") ->  | B171: =IF(A171="","",VLOOKUP(A171,BD!B:C,2,0)) -> 
A172: =IF(ROW()-8<=MAX(calc!F:F),INDEX(BD!B:B,MATCH(ROW()-8,calc!F:F,0)),"") ->  | B172: =IF(A172="","",VLOOKUP(A172,BD!B:C,2,0)) -> 
A173: =IF(ROW()-8<=MAX(calc!F:F),INDEX(BD!B:B,MATCH(ROW()-8,calc!F:F,0)),"") ->  | B173: =IF(A173="","",VLOOKUP(A173,BD!B:C,2,0)) -> 
A174: =IF(ROW()-8<=MAX(calc!F:F),INDEX(BD!B:B,MATCH(ROW()-8,calc!F:F,0)),"") ->  | B174: =IF(A174="","",VLOOKUP(A174,BD!B:C,2,0)) -> 
A175: =IF(ROW()-8<=MAX(calc!F:F),INDEX(BD!B:B,MATCH(ROW()-8,calc!F:F,0)),"") ->  | B175: =IF(A175="","",VLOOKUP(A175,BD!B:C,2,0)) -> 
A176: =IF(ROW()-8<=MAX(calc!F:F),INDEX(BD!B:B,MATCH(ROW()-8,calc!F:F,0)),"") ->  | B176: =IF(A176="","",VLOOKUP(A176,BD!B:C,2,0)) -> 
A177: =IF(ROW()-8<=MAX(calc!F:F),INDEX(BD!B:B,MATCH(ROW()-8,calc!F:F,0)),"") ->  | B177: =IF(A177="","",VLOOKUP(A177,BD!B:C,2,0)) -> 
A178: =IF(ROW()-8<=MAX(calc!F:F),INDEX(BD!B:B,MATCH(ROW()-8,calc!F:F,0)),"") ->  | B178: =IF(A178="","",VLOOKUP(A178,BD!B:C,2,0)) -> 
A179: =IF(ROW()-8<=MAX(calc!F:F),INDEX(BD!B:B,MATCH(ROW()-8,calc!F:F,0)),"") ->  | B179: =IF(A179="","",VLOOKUP(A179,BD!B:C,2,0)) -> 
A180: =IF(ROW()-8<=MAX(calc!F:F),INDEX(BD!B:B,MATCH(ROW()-8,calc!F:F,0)),"") ->  | B180: =IF(A180="","",VLOOKUP(A180,BD!B:C,2,0)) -> 
A181: =IF(ROW()-8<=MAX(calc!F:F),INDEX(BD!B:B,MATCH(ROW()-8,calc!F:F,0)),"") ->  | B181: =IF(A181="","",VLOOKUP(A181,BD!B:C,2,0)) -> 
A182: =IF(ROW()-8<=MAX(calc!F:F),INDEX(BD!B:B,MATCH(ROW()-8,calc!F:F,0)),"") ->  | B182: =IF(A182="","",VLOOKUP(A182,BD!B:C,2,0)) -> 
A183: =IF(ROW()-8<=MAX(calc!F:F),INDEX(BD!B:B,MATCH(ROW()-8,calc!F:F,0)),"") ->  | B183: =IF(A183="","",VLOOKUP(A183,BD!B:C,2,0)) -> 
A184: =IF(ROW()-8<=MAX(calc!F:F),INDEX(BD!B:B,MATCH(ROW()-8,calc!F:F,0)),"") ->  | B184: =IF(A184="","",VLOOKUP(A184,BD!B:C,2,0)) -> 
A185: =IF(ROW()-8<=MAX(calc!F:F),INDEX(BD!B:B,MATCH(ROW()-8,calc!F:F,0)),"") ->  | B185: =IF(A185="","",VLOOKUP(A185,BD!B:C,2,0)) -> 
A186: =IF(ROW()-8<=MAX(calc!F:F),INDEX(BD!B:B,MATCH(ROW()-8,calc!F:F,0)),"") ->  | B186: =IF(A186="","",VLOOKUP(A186,BD!B:C,2,0)) -> 
A187: =IF(ROW()-8<=MAX(calc!F:F),INDEX(BD!B:B,MATCH(ROW()-8,calc!F:F,0)),"") ->  | B187: =IF(A187="","",VLOOKUP(A187,BD!B:C,2,0)) -> 
A188: =IF(ROW()-8<=MAX(calc!F:F),INDEX(BD!B:B,MATCH(ROW()-8,calc!F:F,0)),"") ->  | B188: =IF(A188="","",VLOOKUP(A188,BD!B:C,2,0)) -> 
A189: =IF(ROW()-8<=MAX(calc!F:F),INDEX(BD!B:B,MATCH(ROW()-8,calc!F:F,0)),"") ->  | B189: =IF(A189="","",VLOOKUP(A189,BD!B:C,2,0)) -> 
A190: =IF(ROW()-8<=MAX(calc!F:F),INDEX(BD!B:B,MATCH(ROW()-8,calc!F:F,0)),"") ->  | B190: =IF(A190="","",VLOOKUP(A190,BD!B:C,2,0)) -> 
A191: =IF(ROW()-8<=MAX(calc!F:F),INDEX(BD!B:B,MATCH(ROW()-8,calc!F:F,0)),"") ->  | B191: =IF(A191="","",VLOOKUP(A191,BD!B:C,2,0)) -> 
A192: =IF(ROW()-8<=MAX(calc!F:F),INDEX(BD!B:B,MATCH(ROW()-8,calc!F:F,0)),"") ->  | B192: =IF(A192="","",VLOOKUP(A192,BD!B:C,2,0)) -> 
A193: =IF(ROW()-8<=MAX(calc!F:F),INDEX(BD!B:B,MATCH(ROW()-8,calc!F:F,0)),"") ->  | B193: =IF(A193="","",VLOOKUP(A193,BD!B:C,2,0)) -> 
A194: =IF(ROW()-8<=MAX(calc!F:F),INDEX(BD!B:B,MATCH(ROW()-8,calc!F:F,0)),"") ->  | B194: =IF(A194="","",VLOOKUP(A194,BD!B:C,2,0)) -> 
A195: =IF(ROW()-8<=MAX(calc!F:F),INDEX(BD!B:B,MATCH(ROW()-8,calc!F:F,0)),"") ->  | B195: =IF(A195="","",VLOOKUP(A195,BD!B:C,2,0)) -> 
A196: =IF(ROW()-8<=MAX(calc!F:F),INDEX(BD!B:B,MATCH(ROW()-8,calc!F:F,0)),"") ->  | B196: =IF(A196="","",VLOOKUP(A196,BD!B:C,2,0)) -> 
A197: =IF(ROW()-8<=MAX(calc!F:F),INDEX(BD!B:B,MATCH(ROW()-8,calc!F:F,0)),"") ->  | B197: =IF(A197="","",VLOOKUP(A197,BD!B:C,2,0)) -> 
A198: =IF(ROW()-8<=MAX(calc!F:F),INDEX(BD!B:B,MATCH(ROW()-8,calc!F:F,0)),"") ->  | B198: =IF(A198="","",VLOOKUP(A198,BD!B:C,2,0)) -> 
A199: =IF(ROW()-8<=MAX(calc!F:F),INDEX(BD!B:B,MATCH(ROW()-8,calc!F:F,0)),"") ->  | B199: =IF(A199="","",VLOOKUP(A199,BD!B:C,2,0)) -> 
A200: =IF(ROW()-8<=MAX(calc!F:F),INDEX(BD!B:B,MATCH(ROW()-8,calc!F:F,0)),"") ->  | B200: =IF(A200="","",VLOOKUP(A200,BD!B:C,2,0)) -> 
A201: =IF(ROW()-8<=MAX(calc!F:F),INDEX(BD!B:B,MATCH(ROW()-8,calc!F:F,0)),"") ->  | B201: =IF(A201="","",VLOOKUP(A201,BD!B:C,2,0)) -> 
A202: =IF(ROW()-8<=MAX(calc!F:F),INDEX(BD!B:B,MATCH(ROW()-8,calc!F:F,0)),"") ->  | B202: =IF(A202="","",VLOOKUP(A202,BD!B:C,2,0)) -> 
A203: =IF(ROW()-8<=MAX(calc!F:F),INDEX(BD!B:B,MATCH(ROW()-8,calc!F:F,0)),"") ->  | B203: =IF(A203="","",VLOOKUP(A203,BD!B:C,2,0)) -> 
A204: =IF(ROW()-8<=MAX(calc!F:F),INDEX(BD!B:B,MATCH(ROW()-8,calc!F:F,0)),"") ->  | B204: =IF(A204="","",VLOOKUP(A204,BD!B:C,2,0)) -> 
A205: =IF(ROW()-8<=MAX(calc!F:F),INDEX(BD!B:B,MATCH(ROW()-8,calc!F:F,0)),"") ->  | B205: =IF(A205="","",VLOOKUP(A205,BD!B:C,2,0)) -> 
A206: =IF(ROW()-8<=MAX(calc!F:F),INDEX(BD!B:B,MATCH(ROW()-8,calc!F:F,0)),"") ->  | B206: =IF(A206="","",VLOOKUP(A206,BD!B:C,2,0)) -> 
... 1794 more rows

Sheet calc (hidden)
A1: Champ utilisés /noms | B1: Feuille | C1: Champ | F1: CODAGE LISTE REFERENCES | H1: détection ligne fac | I1: =REF -> H07 | J1: =DEB -> 2012-01-01 | K1: =FIN -> 2013-07-01
A2: REF | B2: Consultation | C2: F4 | F2: =IF(COUNTIF(BD!$B$2:B2,BD!B2)=1,MAX($F$1:F1)+1,"") -> 1 | H2: =IF(AND(BD!B2=REF,BD!D2>=DEB,BD!D2<=FIN),MAX($H$1:H1)+1,0) -> 0 | I2: =BD!B2 -> H2312 | J2: =BD!D2 -> 2013-08-01
A3: DEB | B3: Consultation | C3: F5 | F3: =IF(COUNTIF(BD!$B$2:B3,BD!B3)=1,MAX($F$1:F2)+1,"") -> 2 | H3: =IF(AND(BD!B3=REF,BD!D3>=DEB,BD!D3<=FIN),MAX($H$1:H2)+1,0) -> 0 | I3: =BD!B3 -> H06 | J3: =BD!D3 -> 2013-04-01
A4: FIN | B4: Consultation | C4: F6 | F4: =IF(COUNTIF(BD!$B$2:B4,BD!B4)=1,MAX($F$1:F3)+1,"") ->  | H4: =IF(AND(BD!B4=REF,BD!D4>=DEB,BD!D4<=FIN),MAX($H$1:H3)+1,0) -> 0 | I4: =BD!B4 -> H06 | J4: =BD!D4 -> 2013-05-01
A5: Champ | B5: BD | C5: DECALER//A1:AC3000 | F5: =IF(COUNTIF(BD!$B$2:B5,BD!B5)=1,MAX($F$1:F4)+1,"") ->  | H5: =IF(AND(BD!B5=REF,BD!D5>=DEB,BD!D5<=FIN),MAX($H$1:H4)+1,0) -> 0 | I5: =BD!B5 -> H06 | J5: =BD!D5 -> 2013-06-01
F6: =IF(COUNTIF(BD!$B$2:B6,BD!B6)=1,MAX($F$1:F5)+1,"") ->  | H6: =IF(AND(BD!B6=REF,BD!D6>=DEB,BD!D6<=FIN),MAX($H$1:H5)+1,0) -> 0 | I6: =BD!B6 -> H06 | J6: =BD!D6 -> 2013-07-01
F7: =IF(COUNTIF(BD!$B$2:B7,BD!B7)=1,MAX($F$1:F6)+1,"") ->  | H7: =IF(AND(BD!B7=REF,BD!D7>=DEB,BD!D7<=FIN),MAX($H$1:H6)+1,0) -> 0 | I7: =BD!B7 -> H06 | J7: =BD!D7 -> 2013-08-01
F8: =IF(COUNTIF(BD!$B$2:B8,BD!B8)=1,MAX($F$1:F7)+1,"") ->  | H8: =IF(AND(BD!B8=REF,BD!D8>=DEB,BD!D8<=FIN),MAX($H$1:H7)+1,0) -> 0 | I8: =BD!B8 -> H06 | J8: =BD!D8 -> 2013-09-01
F9: =IF(COUNTIF(BD!$B$2:B9,BD!B9)=1,MAX($F$1:F8)+1,"") ->  | H9: =IF(AND(BD!B9=REF,BD!D9>=DEB,BD!D9<=FIN),MAX($H$1:H8)+1,0) -> 0 | I9: =BD!B9 -> H06 | J9: =BD!D9 -> 2013-10-01
F10: =IF(COUNTIF(BD!$B$2:B10,BD!B10)=1,MAX($F$1:F9)+1,"") -> 3 | H10: =IF(AND(BD!B10=REF,BD!D10>=DEB,BD!D10<=FIN),MAX($H$1:H9)+1,0) -> 0 | I10: =BD!B10 -> H015 | J10: =BD!D10 -> 2013-04-01
F11: =IF(COUNTIF(BD!$B$2:B11,BD!B11)=1,MAX($F$1:F10)+1,"") -> 4 | H11: =IF(AND(BD!B11=REF,BD!D11>=DEB,BD!D11<=FIN),MAX($H$1:H10)+1,0) -> 1 | I11: =BD!B11 -> H07 | J11: =BD!D11 -> 2013-06-01
F12: =IF(COUNTIF(BD!$B$2:B12,BD!B12)=1,MAX($F$1:F11)+1,"") ->  | H12: =IF(AND(BD!B12=REF,BD!D12>=DEB,BD!D12<=FIN),MAX($H$1:H11)+1,0) -> 0 | I12: =BD!B12 -> H06 | J12: =BD!D12 -> 2013-11-01
F13: =IF(COUNTIF(BD!$B$2:B13,BD!B13)=1,MAX($F$1:F12)+1,"") ->  | H13: =IF(AND(BD!B13=REF,BD!D13>=DEB,BD!D13<=FIN),MAX($H$1:H12)+1,0) -> 0 | I13: =BD!B13 -> H06 | J13: =BD!D13 -> 2012-12-01
F14: =IF(COUNTIF(BD!$B$2:B14,BD!B14)=1,MAX($F$1:F13)+1,"") -> 5 | H14: =IF(AND(BD!B14=REF,BD!D14>=DEB,BD!D14<=FIN),MAX($H$1:H13)+1,0) -> 0 | I14: =BD!B14 -> TH054 | J14: =BD!D14 -> 2013-07-01
F15: =IF(COUNTIF(BD!$B$2:B15,BD!B15)=1,MAX($F$1:F14)+1,"") ->  | H15: =IF(AND(BD!B15=REF,BD!D15>=DEB,BD!D15<=FIN),MAX($H$1:H14)+1,0) -> 0 | I15: =BD!B15 -> H06 | J15: =BD!D15 -> 00:00:00
F16: =IF(COUNTIF(BD!$B$2:B16,BD!B16)=1,MAX($F$1:F15)+1,"") ->  | H16: =IF(AND(BD!B16=REF,BD!D16>=DEB,BD!D16<=FIN),MAX($H$1:H15)+1,0) -> 0 | I16: =BD!B16 -> 0 | J16: =BD!D16 -> 00:00:00
F17: =IF(COUNTIF(BD!$B$2:B17,BD!B17)=1,MAX($F$1:F16)+1,"") ->  | H17: =IF(AND(BD!B17=REF,BD!D17>=DEB,BD!D17<=FIN),MAX($H$1:H16)+1,0) -> 0 | I17: =BD!B17 -> 0 | J17: =BD!D17 -> 00:00:00
F18: =IF(COUNTIF(BD!$B$2:B18,BD!B18)=1,MAX($F$1:F17)+1,"") ->  | H18: =IF(AND(BD!B18=REF,BD!D18>=DEB,BD!D18<=FIN),MAX(calc!$H$1:H17)+1,0) -> 0 | I18: =BD!B18 -> 0 | J18: =BD!D18 -> 00:00:00
F19: =IF(COUNTIF(BD!$B$2:B19,BD!B19)=1,MAX($F$1:F18)+1,"") ->  | H19: =IF(AND(BD!B19=REF,BD!D19>=DEB,BD!D19<=FIN),MAX(calc!$H$1:H18)+1,0) -> 0
F20: =IF(COUNTIF(BD!$B$2:B20,BD!B20)=1,MAX($F$1:F19)+1,"") ->  | H20: =IF(AND(BD!B20=REF,BD!D20>=DEB,BD!D20<=FIN),MAX(calc!$H$1:H19)+1,0) -> 0
F21: =IF(COUNTIF(BD!$B$2:B21,BD!B21)=1,MAX($F$1:F20)+1,"") ->  | H21: =IF(AND(BD!B21=REF,BD!D21>=DEB,BD!D21<=FIN),MAX(calc!$H$1:H20)+1,0) -> 0
F22: =IF(COUNTIF(BD!$B$2:B22,BD!B22)=1,MAX($F$1:F21)+1,"") ->  | H22: =IF(AND(BD!B22=REF,BD!D22>=DEB,BD!D22<=FIN),MAX(calc!$H$1:H21)+1,0) -> 0
F23: =IF(COUNTIF(BD!$B$2:B23,BD!B23)=1,MAX($F$1:F22)+1,"") ->  | H23: =IF(AND(BD!B23=REF,BD!D23>=DEB,BD!D23<=FIN),MAX(calc!$H$1:H22)+1,0) -> 0
F24: =IF(COUNTIF(BD!$B$2:B24,BD!B24)=1,MAX($F$1:F23)+1,"") ->  | H24: =IF(AND(BD!B24=REF,BD!D24>=DEB,BD!D24<=FIN),MAX(calc!$H$1:H23)+1,0) -> 0
F25: =IF(COUNTIF(BD!$B$2:B25,BD!B25)=1,MAX($F$1:F24)+1,"") ->  | H25: =IF(AND(BD!B25=REF,BD!D25>=DEB,BD!D25<=FIN),MAX(calc!$H$1:H24)+1,0) -> 0
F26: =IF(COUNTIF(BD!$B$2:B26,BD!B26)=1,MAX($F$1:F25)+1,"") ->  | H26: =IF(AND(BD!B26=REF,BD!D26>=DEB,BD!D26<=FIN),MAX(calc!$H$1:H25)+1,0) -> 0
F27: =IF(COUNTIF(BD!$B$2:B27,BD!B27)=1,MAX($F$1:F26)+1,"") ->  | H27: =IF(AND(BD!B27=REF,BD!D27>=DEB,BD!D27<=FIN),MAX(calc!$H$1:H26)+1,0) -> 0
F28: =IF(COUNTIF(BD!$B$2:B28,BD!B28)=1,MAX($F$1:F27)+1,"") ->  | H28: =IF(AND(BD!B28=REF,BD!D28>=DEB,BD!D28<=FIN),MAX(calc!$H$1:H27)+1,0) -> 0
F29: =IF(COUNTIF(BD!$B$2:B29,BD!B29)=1,MAX($F$1:F28)+1,"") ->  | H29: =IF(AND(BD!B29=REF,BD!D29>=DEB,BD!D29<=FIN),MAX(calc!$H$1:H28)+1,0) -> 0
F30: =IF(COUNTIF(BD!$B$2:B30,BD!B30)=1,MAX($F$1:F29)+1,"") ->  | H30: =IF(AND(BD!B30=REF,BD!D30>=DEB,BD!D30<=FIN),MAX(calc!$H$1:H29)+1,0) -> 0
F31: =IF(COUNTIF(BD!$B$2:B31,BD!B31)=1,MAX($F$1:F30)+1,"") ->  | H31: =IF(AND(BD!B31=REF,BD!D31>=DEB,BD!D31<=FIN),MAX(calc!$H$1:H30)+1,0) -> 0
F32: =IF(COUNTIF(BD!$B$2:B32,BD!B32)=1,MAX($F$1:F31)+1,"") ->  | H32: =IF(AND(BD!B32=REF,BD!D32>=DEB,BD!D32<=FIN),MAX(calc!$H$1:H31)+1,0) -> 0
F33: =IF(COUNTIF(BD!$B$2:B33,BD!B33)=1,MAX($F$1:F32)+1,"") ->  | H33: =IF(AND(BD!B33=REF,BD!D33>=DEB,BD!D33<=FIN),MAX(calc!$H$1:H32)+1,0) -> 0
F34: =IF(COUNTIF(BD!$B$2:B34,BD!B34)=1,MAX($F$1:F33)+1,"") ->  | H34: =IF(AND(BD!B34=REF,BD!D34>=DEB,BD!D34<=FIN),MAX(calc!$H$1:H33)+1,0) -> 0
F35: =IF(COUNTIF(BD!$B$2:B35,BD!B35)=1,MAX($F$1:F34)+1,"") ->  | H35: =IF(AND(BD!B35=REF,BD!D35>=DEB,BD!D35<=FIN),MAX(calc!$H$1:H34)+1,0) -> 0
F36: =IF(COUNTIF(BD!$B$2:B36,BD!B36)=1,MAX($F$1:F35)+1,"") ->  | H36: =IF(AND(BD!B36=REF,BD!D36>=DEB,BD!D36<=FIN),MAX(calc!$H$1:H35)+1,0) -> 0
F37: =IF(COUNTIF(BD!$B$2:B37,BD!B37)=1,MAX($F$1:F36)+1,"") ->  | H37: =IF(AND(BD!B37=REF,BD!D37>=DEB,BD!D37<=FIN),MAX(calc!$H$1:H36)+1,0) -> 0
F38: =IF(COUNTIF(BD!$B$2:B38,BD!B38)=1,MAX($F$1:F37)+1,"") ->  | H38: =IF(AND(BD!B38=REF,BD!D38>=DEB,BD!D38<=FIN),MAX(calc!$H$1:H37)+1,0) -> 0
F39: =IF(COUNTIF(BD!$B$2:B39,BD!B39)=1,MAX($F$1:F38)+1,"") ->  | H39: =IF(AND(BD!B39=REF,BD!D39>=DEB,BD!D39<=FIN),MAX(calc!$H$1:H38)+1,0) -> 0
F40: =IF(COUNTIF(BD!$B$2:B40,BD!B40)=1,MAX($F$1:F39)+1,"") ->  | H40: =IF(AND(BD!B40=REF,BD!D40>=DEB,BD!D40<=FIN),MAX(calc!$H$1:H39)+1,0) -> 0
F41: =IF(COUNTIF(BD!$B$2:B41,BD!B41)=1,MAX($F$1:F40)+1,"") ->  | H41: =IF(AND(BD!B41=REF,BD!D41>=DEB,BD!D41<=FIN),MAX(calc!$H$1:H40)+1,0) -> 0
F42: =IF(COUNTIF(BD!$B$2:B42,BD!B42)=1,MAX($F$1:F41)+1,"") ->  | H42: =IF(AND(BD!B42=REF,BD!D42>=DEB,BD!D42<=FIN),MAX(calc!$H$1:H41)+1,0) -> 0
F43: =IF(COUNTIF(BD!$B$2:B43,BD!B43)=1,MAX($F$1:F42)+1,"") ->  | H43: =IF(AND(BD!B43=REF,BD!D43>=DEB,BD!D43<=FIN),MAX(calc!$H$1:H42)+1,0) -> 0
F44: =IF(COUNTIF(BD!$B$2:B44,BD!B44)=1,MAX($F$1:F43)+1,"") ->  | H44: =IF(AND(BD!B44=REF,BD!D44>=DEB,BD!D44<=FIN),MAX(calc!$H$1:H43)+1,0) -> 0
F45: =IF(COUNTIF(BD!$B$2:B45,BD!B45)=1,MAX($F$1:F44)+1,"") ->  | H45: =IF(AND(BD!B45=REF,BD!D45>=DEB,BD!D45<=FIN),MAX(calc!$H$1:H44)+1,0) -> 0
F46: =IF(COUNTIF(BD!$B$2:B46,BD!B46)=1,MAX($F$1:F45)+1,"") ->  | H46: =IF(AND(BD!B46=REF,BD!D46>=DEB,BD!D46<=FIN),MAX(calc!$H$1:H45)+1,0) -> 0
F47: =IF(COUNTIF(BD!$B$2:B47,BD!B47)=1,MAX($F$1:F46)+1,"") ->  | H47: =IF(AND(BD!B47=REF,BD!D47>=DEB,BD!D47<=FIN),MAX(calc!$H$1:H46)+1,0) -> 0
F48: =IF(COUNTIF(BD!$B$2:B48,BD!B48)=1,MAX($F$1:F47)+1,"") ->  | H48: =IF(AND(BD!B48=REF,BD!D48>=DEB,BD!D48<=FIN),MAX(calc!$H$1:H47)+1,0) -> 0
F49: =IF(COUNTIF(BD!$B$2:B49,BD!B49)=1,MAX($F$1:F48)+1,"") ->  | H49: =IF(AND(BD!B49=REF,BD!D49>=DEB,BD!D49<=FIN),MAX(calc!$H$1:H48)+1,0) -> 0
F50: =IF(COUNTIF(BD!$B$2:B50,BD!B50)=1,MAX($F$1:F49)+1,"") ->  | H50: =IF(AND(BD!B50=REF,BD!D50>=DEB,BD!D50<=FIN),MAX(calc!$H$1:H49)+1,0) -> 0
F51: =IF(COUNTIF(BD!$B$2:B51,BD!B51)=1,MAX($F$1:F50)+1,"") ->  | H51: =IF(AND(BD!B51=REF,BD!D51>=DEB,BD!D51<=FIN),MAX(calc!$H$1:H50)+1,0) -> 0
F52: =IF(COUNTIF(BD!$B$2:B52,BD!B52)=1,MAX($F$1:F51)+1,"") ->  | H52: =IF(AND(BD!B52=REF,BD!D52>=DEB,BD!D52<=FIN),MAX(calc!$H$1:H51)+1,0) -> 0
F53: =IF(COUNTIF(BD!$B$2:B53,BD!B53)=1,MAX($F$1:F52)+1,"") ->  | H53: =IF(AND(BD!B53=REF,BD!D53>=DEB,BD!D53<=FIN),MAX(calc!$H$1:H52)+1,0) -> 0
F54: =IF(COUNTIF(BD!$B$2:B54,BD!B54)=1,MAX($F$1:F53)+1,"") ->  | H54: =IF(AND(BD!B54=REF,BD!D54>=DEB,BD!D54<=FIN),MAX(calc!$H$1:H53)+1,0) -> 0
F55: =IF(COUNTIF(BD!$B$2:B55,BD!B55)=1,MAX($F$1:F54)+1,"") ->  | H55: =IF(AND(BD!B55=REF,BD!D55>=DEB,BD!D55<=FIN),MAX(calc!$H$1:H54)+1,0) -> 0
F56: =IF(COUNTIF(BD!$B$2:B56,BD!B56)=1,MAX($F$1:F55)+1,"") ->  | H56: =IF(AND(BD!B56=REF,BD!D56>=DEB,BD!D56<=FIN),MAX(calc!$H$1:H55)+1,0) -> 0
F57: =IF(COUNTIF(BD!$B$2:B57,BD!B57)=1,MAX($F$1:F56)+1,"") ->  | H57: =IF(AND(BD!B57=REF,BD!D57>=DEB,BD!D57<=FIN),MAX(calc!$H$1:H56)+1,0) -> 0
F58: =IF(COUNTIF(BD!$B$2:B58,BD!B58)=1,MAX($F$1:F57)+1,"") ->  | H58: =IF(AND(BD!B58=REF,BD!D58>=DEB,BD!D58<=FIN),MAX(calc!$H$1:H57)+1,0) -> 0
F59: =IF(COUNTIF(BD!$B$2:B59,BD!B59)=1,MAX($F$1:F58)+1,"") ->  | H59: =IF(AND(BD!B59=REF,BD!D59>=DEB,BD!D59<=FIN),MAX(calc!$H$1:H58)+1,0) -> 0
F60: =IF(COUNTIF(BD!$B$2:B60,BD!B60)=1,MAX($F$1:F59)+1,"") ->  | H60: =IF(AND(BD!B60=REF,BD!D60>=DEB,BD!D60<=FIN),MAX(calc!$H$1:H59)+1,0) -> 0
F61: =IF(COUNTIF(BD!$B$2:B61,BD!B61)=1,MAX($F$1:F60)+1,"") ->  | H61: =IF(AND(BD!B61=REF,BD!D61>=DEB,BD!D61<=FIN),MAX(calc!$H$1:H60)+1,0) -> 0
F62: =IF(COUNTIF(BD!$B$2:B62,BD!B62)=1,MAX($F$1:F61)+1,"") ->  | H62: =IF(AND(BD!B62=REF,BD!D62>=DEB,BD!D62<=FIN),MAX(calc!$H$1:H61)+1,0) -> 0
F63: =IF(COUNTIF(BD!$B$2:B63,BD!B63)=1,MAX($F$1:F62)+1,"") ->  | H63: =IF(AND(BD!B63=REF,BD!D63>=DEB,BD!D63<=FIN),MAX(calc!$H$1:H62)+1,0) -> 0
F64: =IF(COUNTIF(BD!$B$2:B64,BD!B64)=1,MAX($F$1:F63)+1,"") ->  | H64: =IF(AND(BD!B64=REF,BD!D64>=DEB,BD!D64<=FIN),MAX(calc!$H$1:H63)+1,0) -> 0
F65: =IF(COUNTIF(BD!$B$2:B65,BD!B65)=1,MAX($F$1:F64)+1,"") ->  | H65: =IF(AND(BD!B65=REF,BD!D65>=DEB,BD!D65<=FIN),MAX(calc!$H$1:H64)+1,0) -> 0
F66: =IF(COUNTIF(BD!$B$2:B66,BD!B66)=1,MAX($F$1:F65)+1,"") ->  | H66: =IF(AND(BD!B66=REF,BD!D66>=DEB,BD!D66<=FIN),MAX(calc!$H$1:H65)+1,0) -> 0
F67: =IF(COUNTIF(BD!$B$2:B67,BD!B67)=1,MAX($F$1:F66)+1,"") ->  | H67: =IF(AND(BD!B67=REF,BD!D67>=DEB,BD!D67<=FIN),MAX(calc!$H$1:H66)+1,0) -> 0
F68: =IF(COUNTIF(BD!$B$2:B68,BD!B68)=1,MAX($F$1:F67)+1,"") ->  | H68: =IF(AND(BD!B68=REF,BD!D68>=DEB,BD!D68<=FIN),MAX(calc!$H$1:H67)+1,0) -> 0
F69: =IF(COUNTIF(BD!$B$2:B69,BD!B69)=1,MAX($F$1:F68)+1,"") ->  | H69: =IF(AND(BD!B69=REF,BD!D69>=DEB,BD!D69<=FIN),MAX(calc!$H$1:H68)+1,0) -> 0
F70: =IF(COUNTIF(BD!$B$2:B70,BD!B70)=1,MAX($F$1:F69)+1,"") ->  | H70: =IF(AND(BD!B70=REF,BD!D70>=DEB,BD!D70<=FIN),MAX(calc!$H$1:H69)+1,0) -> 0
F71: =IF(COUNTIF(BD!$B$2:B71,BD!B71)=1,MAX($F$1:F70)+1,"") ->  | H71: =IF(AND(BD!B71=REF,BD!D71>=DEB,BD!D71<=FIN),MAX(calc!$H$1:H70)+1,0) -> 0
F72: =IF(COUNTIF(BD!$B$2:B72,BD!B72)=1,MAX($F$1:F71)+1,"") ->  | H72: =IF(AND(BD!B72=REF,BD!D72>=DEB,BD!D72<=FIN),MAX(calc!$H$1:H71)+1,0) -> 0
F73: =IF(COUNTIF(BD!$B$2:B73,BD!B73)=1,MAX($F$1:F72)+1,"") ->  | H73: =IF(AND(BD!B73=REF,BD!D73>=DEB,BD!D73<=FIN),MAX(calc!$H$1:H72)+1,0) -> 0
F74: =IF(COUNTIF(BD!$B$2:B74,BD!B74)=1,MAX($F$1:F73)+1,"") ->  | H74: =IF(AND(BD!B74=REF,BD!D74>=DEB,BD!D74<=FIN),MAX(calc!$H$1:H73)+1,0) -> 0
F75: =IF(COUNTIF(BD!$B$2:B75,BD!B75)=1,MAX($F$1:F74)+1,"") ->  | H75: =IF(AND(BD!B75=REF,BD!D75>=DEB,BD!D75<=FIN),MAX(calc!$H$1:H74)+1,0) -> 0
F76: =IF(COUNTIF(BD!$B$2:B76,BD!B76)=1,MAX($F$1:F75)+1,"") ->  | H76: =IF(AND(BD!B76=REF,BD!D76>=DEB,BD!D76<=FIN),MAX(calc!$H$1:H75)+1,0) -> 0
F77: =IF(COUNTIF(BD!$B$2:B77,BD!B77)=1,MAX($F$1:F76)+1,"") ->  | H77: =IF(AND(BD!B77=REF,BD!D77>=DEB,BD!D77<=FIN),MAX(calc!$H$1:H76)+1,0) -> 0
F78: =IF(COUNTIF(BD!$B$2:B78,BD!B78)=1,MAX($F$1:F77)+1,"") ->  | H78: =IF(AND(BD!B78=REF,BD!D78>=DEB,BD!D78<=FIN),MAX(calc!$H$1:H77)+1,0) -> 0
F79: =IF(COUNTIF(BD!$B$2:B79,BD!B79)=1,MAX($F$1:F78)+1,"") ->  | H79: =IF(AND(BD!B79=REF,BD!D79>=DEB,BD!D79<=FIN),MAX(calc!$H$1:H78)+1,0) -> 0
F80: =IF(COUNTIF(BD!$B$2:B80,BD!B80)=1,MAX($F$1:F79)+1,"") ->  | H80: =IF(AND(BD!B80=REF,BD!D80>=DEB,BD!D80<=FIN),MAX(calc!$H$1:H79)+1,0) -> 0
F81: =IF(COUNTIF(BD!$B$2:B81,BD!B81)=1,MAX($F$1:F80)+1,"") ->  | H81: =IF(AND(BD!B81=REF,BD!D81>=DEB,BD!D81<=FIN),MAX(calc!$H$1:H80)+1,0) -> 0
F82: =IF(COUNTIF(BD!$B$2:B82,BD!B82)=1,MAX($F$1:F81)+1,"") ->  | H82: =IF(AND(BD!B82=REF,BD!D82>=DEB,BD!D82<=FIN),MAX(calc!$H$1:H81)+1,0) -> 0
F83: =IF(COUNTIF(BD!$B$2:B83,BD!B83)=1,MAX($F$1:F82)+1,"") ->  | H83: =IF(AND(BD!B83=REF,BD!D83>=DEB,BD!D83<=FIN),MAX(calc!$H$1:H82)+1,0) -> 0
F84: =IF(COUNTIF(BD!$B$2:B84,BD!B84)=1,MAX($F$1:F83)+1,"") ->  | H84: =IF(AND(BD!B84=REF,BD!D84>=DEB,BD!D84<=FIN),MAX(calc!$H$1:H83)+1,0) -> 0
F85: =IF(COUNTIF(BD!$B$2:B85,BD!B85)=1,MAX($F$1:F84)+1,"") ->  | H85: =IF(AND(BD!B85=REF,BD!D85>=DEB,BD!D85<=FIN),MAX(calc!$H$1:H84)+1,0) -> 0
F86: =IF(COUNTIF(BD!$B$2:B86,BD!B86)=1,MAX($F$1:F85)+1,"") ->  | H86: =IF(AND(BD!B86=REF,BD!D86>=DEB,BD!D86<=FIN),MAX(calc!$H$1:H85)+1,0) -> 0
F87: =IF(COUNTIF(BD!$B$2:B87,BD!B87)=1,MAX($F$1:F86)+1,"") ->  | H87: =IF(AND(BD!B87=REF,BD!D87>=DEB,BD!D87<=FIN),MAX(calc!$H$1:H86)+1,0) -> 0
F88: =IF(COUNTIF(BD!$B$2:B88,BD!B88)=1,MAX($F$1:F87)+1,"") ->  | H88: =IF(AND(BD!B88=REF,BD!D88>=DEB,BD!D88<=FIN),MAX(calc!$H$1:H87)+1,0) -> 0
F89: =IF(COUNTIF(BD!$B$2:B89,BD!B89)=1,MAX($F$1:F88)+1,"") ->  | H89: =IF(AND(BD!B89=REF,BD!D89>=DEB,BD!D89<=FIN),MAX(calc!$H$1:H88)+1,0) -> 0
F90: =IF(COUNTIF(BD!$B$2:B90,BD!B90)=1,MAX($F$1:F89)+1,"") ->  | H90: =IF(AND(BD!B90=REF,BD!D90>=DEB,BD!D90<=FIN),MAX(calc!$H$1:H89)+1,0) -> 0
F91: =IF(COUNTIF(BD!$B$2:B91,BD!B91)=1,MAX($F$1:F90)+1,"") ->  | H91: =IF(AND(BD!B91=REF,BD!D91>=DEB,BD!D91<=FIN),MAX(calc!$H$1:H90)+1,0) -> 0
F92: =IF(COUNTIF(BD!$B$2:B92,BD!B92)=1,MAX($F$1:F91)+1,"") ->  | H92: =IF(AND(BD!B92=REF,BD!D92>=DEB,BD!D92<=FIN),MAX(calc!$H$1:H91)+1,0) -> 0
F93: =IF(COUNTIF(BD!$B$2:B93,BD!B93)=1,MAX($F$1:F92)+1,"") ->  | H93: =IF(AND(BD!B93=REF,BD!D93>=DEB,BD!D93<=FIN),MAX(calc!$H$1:H92)+1,0) -> 0
F94: =IF(COUNTIF(BD!$B$2:B94,BD!B94)=1,MAX($F$1:F93)+1,"") ->  | H94: =IF(AND(BD!B94=REF,BD!D94>=DEB,BD!D94<=FIN),MAX(calc!$H$1:H93)+1,0) -> 0
F95: =IF(COUNTIF(BD!$B$2:B95,BD!B95)=1,MAX($F$1:F94)+1,"") ->  | H95: =IF(AND(BD!B95=REF,BD!D95>=DEB,BD!D95<=FIN),MAX(calc!$H$1:H94)+1,0) -> 0
F96: =IF(COUNTIF(BD!$B$2:B96,BD!B96)=1,MAX($F$1:F95)+1,"") ->  | H96: =IF(AND(BD!B96=REF,BD!D96>=DEB,BD!D96<=FIN),MAX(calc!$H$1:H95)+1,0) -> 0
F97: =IF(COUNTIF(BD!$B$2:B97,BD!B97)=1,MAX($F$1:F96)+1,"") ->  | H97: =IF(AND(BD!B97=REF,BD!D97>=DEB,BD!D97<=FIN),MAX(calc!$H$1:H96)+1,0) -> 0
F98: =IF(COUNTIF(BD!$B$2:B98,BD!B98)=1,MAX($F$1:F97)+1,"") ->  | H98: =IF(AND(BD!B98=REF,BD!D98>=DEB,BD!D98<=FIN),MAX(calc!$H$1:H97)+1,0) -> 0
F99: =IF(COUNTIF(BD!$B$2:B99,BD!B99)=1,MAX($F$1:F98)+1,"") ->  | H99: =IF(AND(BD!B99=REF,BD!D99>=DEB,BD!D99<=FIN),MAX(calc!$H$1:H98)+1,0) -> 0
F100: =IF(COUNTIF(BD!$B$2:B100,BD!B100)=1,MAX($F$1:F99)+1,"") ->  | H100: =IF(AND(BD!B100=REF,BD!D100>=DEB,BD!D100<=FIN),MAX(calc!$H$1:H99)+1,0) -> 0
F101: =IF(COUNTIF(BD!$B$2:B101,BD!B101)=1,MAX($F$1:F100)+1,"") ->  | H101: =IF(AND(BD!B101=REF,BD!D101>=DEB,BD!D101<=FIN),MAX(calc!$H$1:H100)+1,0) -> 0
F102: =IF(COUNTIF(BD!$B$2:B102,BD!B102)=1,MAX($F$1:F101)+1,"") ->  | H102: =IF(AND(BD!B102=REF,BD!D102>=DEB,BD!D102<=FIN),MAX(calc!$H$1:H101)+1,0) -> 0
F103: =IF(COUNTIF(BD!$B$2:B103,BD!B103)=1,MAX($F$1:F102)+1,"") ->  | H103: =IF(AND(BD!B103=REF,BD!D103>=DEB,BD!D103<=FIN),MAX(calc!$H$1:H102)+1,0) -> 0
F104: =IF(COUNTIF(BD!$B$2:B104,BD!B104)=1,MAX($F$1:F103)+1,"") ->  | H104: =IF(AND(BD!B104=REF,BD!D104>=DEB,BD!D104<=FIN),MAX(calc!$H$1:H103)+1,0) -> 0
F105: =IF(COUNTIF(BD!$B$2:B105,BD!B105)=1,MAX($F$1:F104)+1,"") ->  | H105: =IF(AND(BD!B105=REF,BD!D105>=DEB,BD!D105<=FIN),MAX(calc!$H$1:H104)+1,0) -> 0
F106: =IF(COUNTIF(BD!$B$2:B106,BD!B106)=1,MAX($F$1:F105)+1,"") ->  | H106: =IF(AND(BD!B106=REF,BD!D106>=DEB,BD!D106<=FIN),MAX(calc!$H$1:H105)+1,0) -> 0
F107: =IF(COUNTIF(BD!$B$2:B107,BD!B107)=1,MAX($F$1:F106)+1,"") ->  | H107: =IF(AND(BD!B107=REF,BD!D107>=DEB,BD!D107<=FIN),MAX(calc!$H$1:H106)+1,0) -> 0
F108: =IF(COUNTIF(BD!$B$2:B108,BD!B108)=1,MAX($F$1:F107)+1,"") ->  | H108: =IF(AND(BD!B108=REF,BD!D108>=DEB,BD!D108<=FIN),MAX(calc!$H$1:H107)+1,0) -> 0
F109: =IF(COUNTIF(BD!$B$2:B109,BD!B109)=1,MAX($F$1:F108)+1,"") ->  | H109: =IF(AND(BD!B109=REF,BD!D109>=DEB,BD!D109<=FIN),MAX(calc!$H$1:H108)+1,0) -> 0
F110: =IF(COUNTIF(BD!$B$2:B110,BD!B110)=1,MAX($F$1:F109)+1,"") ->  | H110: =IF(AND(BD!B110=REF,BD!D110>=DEB,BD!D110<=FIN),MAX(calc!$H$1:H109)+1,0) -> 0
F111: =IF(COUNTIF(BD!$B$2:B111,BD!B111)=1,MAX($F$1:F110)+1,"") ->  | H111: =IF(AND(BD!B111=REF,BD!D111>=DEB,BD!D111<=FIN),MAX(calc!$H$1:H110)+1,0) -> 0
F112: =IF(COUNTIF(BD!$B$2:B112,BD!B112)=1,MAX($F$1:F111)+1,"") ->  | H112: =IF(AND(BD!B112=REF,BD!D112>=DEB,BD!D112<=FIN),MAX(calc!$H$1:H111)+1,0) -> 0
F113: =IF(COUNTIF(BD!$B$2:B113,BD!B113)=1,MAX($F$1:F112)+1,"") ->  | H113: =IF(AND(BD!B113=REF,BD!D113>=DEB,BD!D113<=FIN),MAX(calc!$H$1:H112)+1,0) -> 0
F114: =IF(COUNTIF(BD!$B$2:B114,BD!B114)=1,MAX($F$1:F113)+1,"") ->  | H114: =IF(AND(BD!B114=REF,BD!D114>=DEB,BD!D114<=FIN),MAX(calc!$H$1:H113)+1,0) -> 0
F115: =IF(COUNTIF(BD!$B$2:B115,BD!B115)=1,MAX($F$1:F114)+1,"") ->  | H115: =IF(AND(BD!B115=REF,BD!D115>=DEB,BD!D115<=FIN),MAX(calc!$H$1:H114)+1,0) -> 0
F116: =IF(COUNTIF(BD!$B$2:B116,BD!B116)=1,MAX($F$1:F115)+1,"") ->  | H116: =IF(AND(BD!B116=REF,BD!D116>=DEB,BD!D116<=FIN),MAX(calc!$H$1:H115)+1,0) -> 0
F117: =IF(COUNTIF(BD!$B$2:B117,BD!B117)=1,MAX($F$1:F116)+1,"") ->  | H117: =IF(AND(BD!B117=REF,BD!D117>=DEB,BD!D117<=FIN),MAX(calc!$H$1:H116)+1,0) -> 0
F118: =IF(COUNTIF(BD!$B$2:B118,BD!B118)=1,MAX($F$1:F117)+1,"") ->  | H118: =IF(AND(BD!B118=REF,BD!D118>=DEB,BD!D118<=FIN),MAX(calc!$H$1:H117)+1,0) -> 0
F119: =IF(COUNTIF(BD!$B$2:B119,BD!B119)=1,MAX($F$1:F118)+1,"") ->  | H119: =IF(AND(BD!B119=REF,BD!D119>=DEB,BD!D119<=FIN),MAX(calc!$H$1:H118)+1,0) -> 0
F120: =IF(COUNTIF(BD!$B$2:B120,BD!B120)=1,MAX($F$1:F119)+1,"") ->  | H120: =IF(AND(BD!B120=REF,BD!D120>=DEB,BD!D120<=FIN),MAX(calc!$H$1:H119)+1,0) -> 0
F121: =IF(COUNTIF(BD!$B$2:B121,BD!B121)=1,MAX($F$1:F120)+1,"") ->  | H121: =IF(AND(BD!B121=REF,BD!D121>=DEB,BD!D121<=FIN),MAX(calc!$H$1:H120)+1,0) -> 0
F122: =IF(COUNTIF(BD!$B$2:B122,BD!B122)=1,MAX($F$1:F121)+1,"") ->  | H122: =IF(AND(BD!B122=REF,BD!D122>=DEB,BD!D122<=FIN),MAX(calc!$H$1:H121)+1,0) -> 0
F123: =IF(COUNTIF(BD!$B$2:B123,BD!B123)=1,MAX($F$1:F122)+1,"") ->  | H123: =IF(AND(BD!B123=REF,BD!D123>=DEB,BD!D123<=FIN),MAX(calc!$H$1:H122)+1,0) -> 0
F124: =IF(COUNTIF(BD!$B$2:B124,BD!B124)=1,MAX($F$1:F123)+1,"") ->  | H124: =IF(AND(BD!B124=REF,BD!D124>=DEB,BD!D124<=FIN),MAX(calc!$H$1:H123)+1,0) -> 0
F125: =IF(COUNTIF(BD!$B$2:B125,BD!B125)=1,MAX($F$1:F124)+1,"") ->  | H125: =IF(AND(BD!B125=REF,BD!D125>=DEB,BD!D125<=FIN),MAX(calc!$H$1:H124)+1,0) -> 0
F126: =IF(COUNTIF(BD!$B$2:B126,BD!B126)=1,MAX($F$1:F125)+1,"") ->  | H126: =IF(AND(BD!B126=REF,BD!D126>=DEB,BD!D126<=FIN),MAX(calc!$H$1:H125)+1,0) -> 0
F127: =IF(COUNTIF(BD!$B$2:B127,BD!B127)=1,MAX($F$1:F126)+1,"") ->  | H127: =IF(AND(BD!B127=REF,BD!D127>=DEB,BD!D127<=FIN),MAX(calc!$H$1:H126)+1,0) -> 0
F128: =IF(COUNTIF(BD!$B$2:B128,BD!B128)=1,MAX($F$1:F127)+1,"") ->  | H128: =IF(AND(BD!B128=REF,BD!D128>=DEB,BD!D128<=FIN),MAX(calc!$H$1:H127)+1,0) -> 0
F129: =IF(COUNTIF(BD!$B$2:B129,BD!B129)=1,MAX($F$1:F128)+1,"") ->  | H129: =IF(AND(BD!B129=REF,BD!D129>=DEB,BD!D129<=FIN),MAX(calc!$H$1:H128)+1,0) -> 0
F130: =IF(COUNTIF(BD!$B$2:B130,BD!B130)=1,MAX($F$1:F129)+1,"") ->  | H130: =IF(AND(BD!B130=REF,BD!D130>=DEB,BD!D130<=FIN),MAX(calc!$H$1:H129)+1,0) -> 0
F131: =IF(COUNTIF(BD!$B$2:B131,BD!B131)=1,MAX($F$1:F130)+1,"") ->  | H131: =IF(AND(BD!B131=REF,BD!D131>=DEB,BD!D131<=FIN),MAX(calc!$H$1:H130)+1,0) -> 0
F132: =IF(COUNTIF(BD!$B$2:B132,BD!B132)=1,MAX($F$1:F131)+1,"") ->  | H132: =IF(AND(BD!B132=REF,BD!D132>=DEB,BD!D132<=FIN),MAX(calc!$H$1:H131)+1,0) -> 0
F133: =IF(COUNTIF(BD!$B$2:B133,BD!B133)=1,MAX($F$1:F132)+1,"") ->  | H133: =IF(AND(BD!B133=REF,BD!D133>=DEB,BD!D133<=FIN),MAX(calc!$H$1:H132)+1,0) -> 0
F134: =IF(COUNTIF(BD!$B$2:B134,BD!B134)=1,MAX($F$1:F133)+1,"") ->  | H134: =IF(AND(BD!B134=REF,BD!D134>=DEB,BD!D134<=FIN),MAX(calc!$H$1:H133)+1,0) -> 0
F135: =IF(COUNTIF(BD!$B$2:B135,BD!B135)=1,MAX($F$1:F134)+1,"") ->  | H135: =IF(AND(BD!B135=REF,BD!D135>=DEB,BD!D135<=FIN),MAX(calc!$H$1:H134)+1,0) -> 0
F136: =IF(COUNTIF(BD!$B$2:B136,BD!B136)=1,MAX($F$1:F135)+1,"") ->  | H136: =IF(AND(BD!B136=REF,BD!D136>=DEB,BD!D136<=FIN),MAX(calc!$H$1:H135)+1,0) -> 0
F137: =IF(COUNTIF(BD!$B$2:B137,BD!B137)=1,MAX($F$1:F136)+1,"") ->  | H137: =IF(AND(BD!B137=REF,BD!D137>=DEB,BD!D137<=FIN),MAX(calc!$H$1:H136)+1,0) -> 0
F138: =IF(COUNTIF(BD!$B$2:B138,BD!B138)=1,MAX($F$1:F137)+1,"") ->  | H138: =IF(AND(BD!B138=REF,BD!D138>=DEB,BD!D138<=FIN),MAX(calc!$H$1:H137)+1,0) -> 0
F139: =IF(COUNTIF(BD!$B$2:B139,BD!B139)=1,MAX($F$1:F138)+1,"") ->  | H139: =IF(AND(BD!B139=REF,BD!D139>=DEB,BD!D139<=FIN),MAX(calc!$H$1:H138)+1,0) -> 0
F140: =IF(COUNTIF(BD!$B$2:B140,BD!B140)=1,MAX($F$1:F139)+1,"") ->  | H140: =IF(AND(BD!B140=REF,BD!D140>=DEB,BD!D140<=FIN),MAX(calc!$H$1:H139)+1,0) -> 0
F141: =IF(COUNTIF(BD!$B$2:B141,BD!B141)=1,MAX($F$1:F140)+1,"") ->  | H141: =IF(AND(BD!B141=REF,BD!D141>=DEB,BD!D141<=FIN),MAX(calc!$H$1:H140)+1,0) -> 0
F142: =IF(COUNTIF(BD!$B$2:B142,BD!B142)=1,MAX($F$1:F141)+1,"") ->  | H142: =IF(AND(BD!B142=REF,BD!D142>=DEB,BD!D142<=FIN),MAX(calc!$H$1:H141)+1,0) -> 0
F143: =IF(COUNTIF(BD!$B$2:B143,BD!B143)=1,MAX($F$1:F142)+1,"") ->  | H143: =IF(AND(BD!B143=REF,BD!D143>=DEB,BD!D143<=FIN),MAX(calc!$H$1:H142)+1,0) -> 0
F144: =IF(COUNTIF(BD!$B$2:B144,BD!B144)=1,MAX($F$1:F143)+1,"") ->  | H144: =IF(AND(BD!B144=REF,BD!D144>=DEB,BD!D144<=FIN),MAX(calc!$H$1:H143)+1,0) -> 0
F145: =IF(COUNTIF(BD!$B$2:B145,BD!B145)=1,MAX($F$1:F144)+1,"") ->  | H145: =IF(AND(BD!B145=REF,BD!D145>=DEB,BD!D145<=FIN),MAX(calc!$H$1:H144)+1,0) -> 0
F146: =IF(COUNTIF(BD!$B$2:B146,BD!B146)=1,MAX($F$1:F145)+1,"") ->  | H146: =IF(AND(BD!B146=REF,BD!D146>=DEB,BD!D146<=FIN),MAX(calc!$H$1:H145)+1,0) -> 0
F147: =IF(COUNTIF(BD!$B$2:B147,BD!B147)=1,MAX($F$1:F146)+1,"") ->  | H147: =IF(AND(BD!B147=REF,BD!D147>=DEB,BD!D147<=FIN),MAX(calc!$H$1:H146)+1,0) -> 0
F148: =IF(COUNTIF(BD!$B$2:B148,BD!B148)=1,MAX($F$1:F147)+1,"") ->  | H148: =IF(AND(BD!B148=REF,BD!D148>=DEB,BD!D148<=FIN),MAX(calc!$H$1:H147)+1,0) -> 0
F149: =IF(COUNTIF(BD!$B$2:B149,BD!B149)=1,MAX($F$1:F148)+1,"") ->  | H149: =IF(AND(BD!B149=REF,BD!D149>=DEB,BD!D149<=FIN),MAX(calc!$H$1:H148)+1,0) -> 0
F150: =IF(COUNTIF(BD!$B$2:B150,BD!B150)=1,MAX($F$1:F149)+1,"") ->  | H150: =IF(AND(BD!B150=REF,BD!D150>=DEB,BD!D150<=FIN),MAX(calc!$H$1:H149)+1,0) -> 0
F151: =IF(COUNTIF(BD!$B$2:B151,BD!B151)=1,MAX($F$1:F150)+1,"") ->  | H151: =IF(AND(BD!B151=REF,BD!D151>=DEB,BD!D151<=FIN),MAX(calc!$H$1:H150)+1,0) -> 0
F152: =IF(COUNTIF(BD!$B$2:B152,BD!B152)=1,MAX($F$1:F151)+1,"") ->  | H152: =IF(AND(BD!B152=REF,BD!D152>=DEB,BD!D152<=FIN),MAX(calc!$H$1:H151)+1,0) -> 0
F153: =IF(COUNTIF(BD!$B$2:B153,BD!B153)=1,MAX($F$1:F152)+1,"") ->  | H153: =IF(AND(BD!B153=REF,BD!D153>=DEB,BD!D153<=FIN),MAX(calc!$H$1:H152)+1,0) -> 0
F154: =IF(COUNTIF(BD!$B$2:B154,BD!B154)=1,MAX($F$1:F153)+1,"") ->  | H154: =IF(AND(BD!B154=REF,BD!D154>=DEB,BD!D154<=FIN),MAX(calc!$H$1:H153)+1,0) -> 0
F155: =IF(COUNTIF(BD!$B$2:B155,BD!B155)=1,MAX($F$1:F154)+1,"") ->  | H155: =IF(AND(BD!B155=REF,BD!D155>=DEB,BD!D155<=FIN),MAX(calc!$H$1:H154)+1,0) -> 0
F156: =IF(COUNTIF(BD!$B$2:B156,BD!B156)=1,MAX($F$1:F155)+1,"") ->  | H156: =IF(AND(BD!B156=REF,BD!D156>=DEB,BD!D156<=FIN),MAX(calc!$H$1:H155)+1,0) -> 0
F157: =IF(COUNTIF(BD!$B$2:B157,BD!B157)=1,MAX($F$1:F156)+1,"") ->  | H157: =IF(AND(BD!B157=REF,BD!D157>=DEB,BD!D157<=FIN),MAX(calc!$H$1:H156)+1,0) -> 0
F158: =IF(COUNTIF(BD!$B$2:B158,BD!B158)=1,MAX($F$1:F157)+1,"") ->  | H158: =IF(AND(BD!B158=REF,BD!D158>=DEB,BD!D158<=FIN),MAX(calc!$H$1:H157)+1,0) -> 0
F159: =IF(COUNTIF(BD!$B$2:B159,BD!B159)=1,MAX($F$1:F158)+1,"") ->  | H159: =IF(AND(BD!B159=REF,BD!D159>=DEB,BD!D159<=FIN),MAX(calc!$H$1:H158)+1,0) -> 0
F160: =IF(COUNTIF(BD!$B$2:B160,BD!B160)=1,MAX($F$1:F159)+1,"") ->  | H160: =IF(AND(BD!B160=REF,BD!D160>=DEB,BD!D160<=FIN),MAX(calc!$H$1:H159)+1,0) -> 0
F161: =IF(COUNTIF(BD!$B$2:B161,BD!B161)=1,MAX($F$1:F160)+1,"") ->  | H161: =IF(AND(BD!B161=REF,BD!D161>=DEB,BD!D161<=FIN),MAX(calc!$H$1:H160)+1,0) -> 0
F162: =IF(COUNTIF(BD!$B$2:B162,BD!B162)=1,MAX($F$1:F161)+1,"") ->  | H162: =IF(AND(BD!B162=REF,BD!D162>=DEB,BD!D162<=FIN),MAX(calc!$H$1:H161)+1,0) -> 0
F163: =IF(COUNTIF(BD!$B$2:B163,BD!B163)=1,MAX($F$1:F162)+1,"") ->  | H163: =IF(AND(BD!B163=REF,BD!D163>=DEB,BD!D163<=FIN),MAX(calc!$H$1:H162)+1,0) -> 0
F164: =IF(COUNTIF(BD!$B$2:B164,BD!B164)=1,MAX($F$1:F163)+1,"") ->  | H164: =IF(AND(BD!B164=REF,BD!D164>=DEB,BD!D164<=FIN),MAX(calc!$H$1:H163)+1,0) -> 0
F165: =IF(COUNTIF(BD!$B$2:B165,BD!B165)=1,MAX($F$1:F164)+1,"") ->  | H165: =IF(AND(BD!B165=REF,BD!D165>=DEB,BD!D165<=FIN),MAX(calc!$H$1:H164)+1,0) -> 0
F166: =IF(COUNTIF(BD!$B$2:B166,BD!B166)=1,MAX($F$1:F165)+1,"") ->  | H166: =IF(AND(BD!B166=REF,BD!D166>=DEB,BD!D166<=FIN),MAX(calc!$H$1:H165)+1,0) -> 0
F167: =IF(COUNTIF(BD!$B$2:B167,BD!B167)=1,MAX($F$1:F166)+1,"") ->  | H167: =IF(AND(BD!B167=REF,BD!D167>=DEB,BD!D167<=FIN),MAX(calc!$H$1:H166)+1,0) -> 0
F168: =IF(COUNTIF(BD!$B$2:B168,BD!B168)=1,MAX($F$1:F167)+1,"") ->  | H168: =IF(AND(BD!B168=REF,BD!D168>=DEB,BD!D168<=FIN),MAX(calc!$H$1:H167)+1,0) -> 0
F169: =IF(COUNTIF(BD!$B$2:B169,BD!B169)=1,MAX($F$1:F168)+1,"") ->  | H169: =IF(AND(BD!B169=REF,BD!D169>=DEB,BD!D169<=FIN),MAX(calc!$H$1:H168)+1,0) -> 0
F170: =IF(COUNTIF(BD!$B$2:B170,BD!B170)=1,MAX($F$1:F169)+1,"") ->  | H170: =IF(AND(BD!B170=REF,BD!D170>=DEB,BD!D170<=FIN),MAX(calc!$H$1:H169)+1,0) -> 0
F171: =IF(COUNTIF(BD!$B$2:B171,BD!B171)=1,MAX($F$1:F170)+1,"") ->  | H171: =IF(AND(BD!B171=REF,BD!D171>=DEB,BD!D171<=FIN),MAX(calc!$H$1:H170)+1,0) -> 0
F172: =IF(COUNTIF(BD!$B$2:B172,BD!B172)=1,MAX($F$1:F171)+1,"") ->  | H172: =IF(AND(BD!B172=REF,BD!D172>=DEB,BD!D172<=FIN),MAX(calc!$H$1:H171)+1,0) -> 0
F173: =IF(COUNTIF(BD!$B$2:B173,BD!B173)=1,MAX($F$1:F172)+1,"") ->  | H173: =IF(AND(BD!B173=REF,BD!D173>=DEB,BD!D173<=FIN),MAX(calc!$H$1:H172)+1,0) -> 0
F174: =IF(COUNTIF(BD!$B$2:B174,BD!B174)=1,MAX($F$1:F173)+1,"") ->  | H174: =IF(AND(BD!B174=REF,BD!D174>=DEB,BD!D174<=FIN),MAX(calc!$H$1:H173)+1,0) -> 0
F175: =IF(COUNTIF(BD!$B$2:B175,BD!B175)=1,MAX($F$1:F174)+1,"") ->  | H175: =IF(AND(BD!B175=REF,BD!D175>=DEB,BD!D175<=FIN),MAX(calc!$H$1:H174)+1,0) -> 0
F176: =IF(COUNTIF(BD!$B$2:B176,BD!B176)=1,MAX($F$1:F175)+1,"") ->  | H176: =IF(AND(BD!B176=REF,BD!D176>=DEB,BD!D176<=FIN),MAX(calc!$H$1:H175)+1,0) -> 0
F177: =IF(COUNTIF(BD!$B$2:B177,BD!B177)=1,MAX($F$1:F176)+1,"") ->  | H177: =IF(AND(BD!B177=REF,BD!D177>=DEB,BD!D177<=FIN),MAX(calc!$H$1:H176)+1,0) -> 0
F178: =IF(COUNTIF(BD!$B$2:B178,BD!B178)=1,MAX($F$1:F177)+1,"") ->  | H178: =IF(AND(BD!B178=REF,BD!D178>=DEB,BD!D178<=FIN),MAX(calc!$H$1:H177)+1,0) -> 0
F179: =IF(COUNTIF(BD!$B$2:B179,BD!B179)=1,MAX($F$1:F178)+1,"") ->  | H179: =IF(AND(BD!B179=REF,BD!D179>=DEB,BD!D179<=FIN),MAX(calc!$H$1:H178)+1,0) -> 0
F180: =IF(COUNTIF(BD!$B$2:B180,BD!B180)=1,MAX($F$1:F179)+1,"") ->  | H180: =IF(AND(BD!B180=REF,BD!D180>=DEB,BD!D180<=FIN),MAX(calc!$H$1:H179)+1,0) -> 0
F181: =IF(COUNTIF(BD!$B$2:B181,BD!B181)=1,MAX($F$1:F180)+1,"") ->  | H181: =IF(AND(BD!B181=REF,BD!D181>=DEB,BD!D181<=FIN),MAX(calc!$H$1:H180)+1,0) -> 0
F182: =IF(COUNTIF(BD!$B$2:B182,BD!B182)=1,MAX($F$1:F181)+1,"") ->  | H182: =IF(AND(BD!B182=REF,BD!D182>=DEB,BD!D182<=FIN),MAX(calc!$H$1:H181)+1,0) -> 0
F183: =IF(COUNTIF(BD!$B$2:B183,BD!B183)=1,MAX($F$1:F182)+1,"") ->  | H183: =IF(AND(BD!B183=REF,BD!D183>=DEB,BD!D183<=FIN),MAX(calc!$H$1:H182)+1,0) -> 0
F184: =IF(COUNTIF(BD!$B$2:B184,BD!B184)=1,MAX($F$1:F183)+1,"") ->  | H184: =IF(AND(BD!B184=REF,BD!D184>=DEB,BD!D184<=FIN),MAX(calc!$H$1:H183)+1,0) -> 0
F185: =IF(COUNTIF(BD!$B$2:B185,BD!B185)=1,MAX($F$1:F184)+1,"") ->  | H185: =IF(AND(BD!B185=REF,BD!D185>=DEB,BD!D185<=FIN),MAX(calc!$H$1:H184)+1,0) -> 0
F186: =IF(COUNTIF(BD!$B$2:B186,BD!B186)=1,MAX($F$1:F185)+1,"") ->  | H186: =IF(AND(BD!B186=REF,BD!D186>=DEB,BD!D186<=FIN),MAX(calc!$H$1:H185)+1,0) -> 0
F187: =IF(COUNTIF(BD!$B$2:B187,BD!B187)=1,MAX($F$1:F186)+1,"") ->  | H187: =IF(AND(BD!B187=REF,BD!D187>=DEB,BD!D187<=FIN),MAX(calc!$H$1:H186)+1,0) -> 0
F188: =IF(COUNTIF(BD!$B$2:B188,BD!B188)=1,MAX($F$1:F187)+1,"") ->  | H188: =IF(AND(BD!B188=REF,BD!D188>=DEB,BD!D188<=FIN),MAX(calc!$H$1:H187)+1,0) -> 0
F189: =IF(COUNTIF(BD!$B$2:B189,BD!B189)=1,MAX($F$1:F188)+1,"") ->  | H189: =IF(AND(BD!B189=REF,BD!D189>=DEB,BD!D189<=FIN),MAX(calc!$H$1:H188)+1,0) -> 0
F190: =IF(COUNTIF(BD!$B$2:B190,BD!B190)=1,MAX($F$1:F189)+1,"") ->  | H190: =IF(AND(BD!B190=REF,BD!D190>=DEB,BD!D190<=FIN),MAX(calc!$H$1:H189)+1,0) -> 0
F191: =IF(COUNTIF(BD!$B$2:B191,BD!B191)=1,MAX($F$1:F190)+1,"") ->  | H191: =IF(AND(BD!B191=REF,BD!D191>=DEB,BD!D191<=FIN),MAX(calc!$H$1:H190)+1,0) -> 0
F192: =IF(COUNTIF(BD!$B$2:B192,BD!B192)=1,MAX($F$1:F191)+1,"") ->  | H192: =IF(AND(BD!B192=REF,BD!D192>=DEB,BD!D192<=FIN),MAX(calc!$H$1:H191)+1,0) -> 0
F193: =IF(COUNTIF(BD!$B$2:B193,BD!B193)=1,MAX($F$1:F192)+1,"") ->  | H193: =IF(AND(BD!B193=REF,BD!D193>=DEB,BD!D193<=FIN),MAX(calc!$H$1:H192)+1,0) -> 0
F194: =IF(COUNTIF(BD!$B$2:B194,BD!B194)=1,MAX($F$1:F193)+1,"") ->  | H194: =IF(AND(BD!B194=REF,BD!D194>=DEB,BD!D194<=FIN),MAX(calc!$H$1:H193)+1,0) -> 0
F195: =IF(COUNTIF(BD!$B$2:B195,BD!B195)=1,MAX($F$1:F194)+1,"") ->  | H195: =IF(AND(BD!B195=REF,BD!D195>=DEB,BD!D195<=FIN),MAX(calc!$H$1:H194)+1,0) -> 0
F196: =IF(COUNTIF(BD!$B$2:B196,BD!B196)=1,MAX($F$1:F195)+1,"") ->  | H196: =IF(AND(BD!B196=REF,BD!D196>=DEB,BD!D196<=FIN),MAX(calc!$H$1:H195)+1,0) -> 0
F197: =IF(COUNTIF(BD!$B$2:B197,BD!B197)=1,MAX($F$1:F196)+1,"") ->  | H197: =IF(AND(BD!B197=REF,BD!D197>=DEB,BD!D197<=FIN),MAX(calc!$H$1:H196)+1,0) -> 0
F198: =IF(COUNTIF(BD!$B$2:B198,BD!B198)=1,MAX($F$1:F197)+1,"") ->  | H198: =IF(AND(BD!B198=REF,BD!D198>=DEB,BD!D198<=FIN),MAX(calc!$H$1:H197)+1,0) -> 0
F199: =IF(COUNTIF(BD!$B$2:B199,BD!B199)=1,MAX($F$1:F198)+1,"") ->  | H199: =IF(AND(BD!B199=REF,BD!D199>=DEB,BD!D199<=FIN),MAX(calc!$H$1:H198)+1,0) -> 0
F200: =IF(COUNTIF(BD!$B$2:B200,BD!B200)=1,MAX($F$1:F199)+1,"") ->  | H200: =IF(AND(BD!B200=REF,BD!D200>=DEB,BD!D200<=FIN),MAX(calc!$H$1:H199)+1,0) -> 0
... 5800 more rows
